Body Name,Body,Service Division Label,Service Division Code,Organisational Unit,Expenditure Category,Expenditure Code,CIPFA detailed expenditure type,CIPFA detailed expenditure code,Narrative,Date,Transaction number,Net Amount,Capital and Revenue,Supplier Name,Supplier ID
Chorley Borough Council,http://statistics.data.gov.uk/id/local-authority/30UE,Community Development,1097,Governance,Grants To Other Organisations,40127,Grants and Subscriptions,5031,Councillor Community Grant Fund 2014/2015,13/08/2014,97111,250.00,Revenue,1st Gregson Lane Guides,55652
Chorley Borough Council,http://statistics.data.gov.uk/id/local-authority/30UE,Capital,Capital,Streetscene & Leisure Contracts,Equipment,3014,Capital Expenditure,Capital,Supply of 240 litre wheeled bins for Garden waste. Colour: Brown Artwork as previous. ,01/08/2014,96854,"13,032.00",Capital,A&C Weber UK Ltd,53284
Chorley Borough Council,http://statistics.data.gov.uk/id/local-authority/30UE,Capital,Capital,Housing,Grants,3002,Capital Expenditure,Capital,INV.ADDRESS REDACTED DFG,20/08/2014,97197,"3,282.00",Capital,Accessible Bathroom Solutions Ltd,58149
Chorley Borough Council,http://statistics.data.gov.uk/id/local-authority/30UE,Service Management & Support,1009,Streetscene & Leisure Contracts,Supplies-Grounds Maintenance,40025,"Equipment, Furniture & Materia",5023,Supply black gloss paint smooth metal paint,15/08/2014,96995,277.00,Revenue,Ace Decor Ltd,17182
Chorley Borough Council,http://statistics.data.gov.uk/id/local-authority/30UE,Service Management & Support,1009,Streetscene & Leisure Contracts,Supplies-Grounds Maintenance,40025,"Equipment, Furniture & Materia",5023,Supply green wood stain 4 x 5 litres,15/08/2014,96995,29.16,Revenue,Ace Decor Ltd,17182
Chorley Borough Council,http://statistics.data.gov.uk/id/local-authority/30UE,Service Management & Support,1009,Streetscene & Leisure Contracts,Supplies-Grounds Maintenance,40025,"Equipment, Furniture & Materia",5023,Supply yellow paint for application to wood plus primer,15/08/2014,96995,17.92,Revenue,Ace Decor Ltd,17182
Chorley Borough Council,http://statistics.data.gov.uk/id/local-authority/30UE,Service Management & Support,1009,Streetscene & Leisure Contracts,Supplies-Grounds Maintenance,40025,"Equipment, Furniture & Materia",5023,Paint brushes as required,15/08/2014,96995,19.50,Revenue,Ace Decor Ltd,17182
Chorley Borough Council,http://statistics.data.gov.uk/id/local-authority/30UE,Service Management & Support,1009,Streetscene & Leisure Contracts,Supplies-Grounds Maintenance,40025,"Equipment, Furniture & Materia",5023,Acrylic Primer,15/08/2014,96995,10.56,Revenue,Ace Decor Ltd,17182
Chorley Borough Council,http://statistics.data.gov.uk/id/local-authority/30UE,Capital,Capital,Housing,Other Capital Grants/Loans,3000,Capital Expenditure,Capital,ADDRESS REDACTED  - 100% of Chorley Council`s affordable housing contribution upon completion of improvement works,15/08/2014,97158,"27,500.00",Capital,Adactus Housing Group,19700
Chorley Borough Council,http://statistics.data.gov.uk/id/local-authority/30UE,Community Development,1097,Governance,Grants To Other Organisations,40127,Grants and Subscriptions,5031,Councillor Community Grant Fund 2014/2015,13/08/2014,97112,250.00,Revenue,Adlington & District in bloom,66383
Chorley Borough Council,http://statistics.data.gov.uk/id/local-authority/30UE,Flood Defence & Land Drainage,1046,Health Environment & Neighbourhoods,Community Develop Initiatives,40185,Miscellaneous Expenses,5034,Neighbourhood working project grant ,29/08/2014,97410,"3,000.00",Revenue,Adlington & district millenium Committee,66515
Chorley Borough Council,http://statistics.data.gov.uk/id/local-authority/30UE,Central Support Services,1009,Governance,Fire Alarms,20072,Fixtures and Fittings,5010,Maintenance of the Fire Alarm system for the period 01/07/14 to 30/06/15,01/08/2014,96450,440.17,Revenue,ADT Fire & Security,16645
Chorley Borough Council,http://statistics.data.gov.uk/id/local-authority/30UE,Homelessness,1075,Governance,CCTV Camera Maintenance,40007,"Equipment, Furniture & Materia",5023,For Engineer to attend to Fire Alarm 04/07/14 docket number CJ884795,13/08/2014,96898,390.00,Revenue,ADT Fire & Security,16645
Chorley Borough Council,http://statistics.data.gov.uk/id/local-authority/30UE,Unapportionable Central OHeads,1009,Governance,Burglar Alarms & Security Systems,20075,Fixtures and Fittings,5010,invoice number 27328422-10 redcare line. charge for peroid 10-08-14 to 09-08-15,20/08/2014,96899,323.85,Revenue,ADT Fire & Security,16645
Chorley Borough Council,http://statistics.data.gov.uk/id/local-authority/30UE,Unapportionable Central OHeads,1009,Governance,Burglar Alarms & Security Systems,20075,Fixtures and Fittings,5010,"Fire alarms, intruder alarms, access system and monitoring work at the Town Hall.",13/08/2014,96900,323.85,Revenue,ADT Fire & Security,16645
Chorley Borough Council,http://statistics.data.gov.uk/id/local-authority/30UE,Business Support,1095,Governance,Burglar Alarms & Security Systems,20075,Fixtures and Fittings,5010,"Fire alarms, intruder alarms, access system and monitoring work at Gillibrand Street.",13/08/2014,96901,341.79,Revenue,ADT Fire & Security,16645
Chorley Borough Council,http://statistics.data.gov.uk/id/local-authority/30UE,Unapportionable Central OHeads,1009,Governance,Burglar Alarms & Security Systems,20075,Fixtures and Fittings,5010,"Fire alarms, intruder alarms, access system and monitoring work at the Town Hall.",13/08/2014,96902,586.22,Revenue,ADT Fire & Security,16645
Chorley Borough Council,http://statistics.data.gov.uk/id/local-authority/30UE,Unapportionable Central OHeads,1009,Governance,Burglar Alarms & Security Systems,20075,Fixtures and Fittings,5010,Additional mag lock and card reader fitted to cellar door at the Town Hall,13/08/2014,97000,994.26,Revenue,ADT Fire & Security,16645
Chorley Borough Council,http://statistics.data.gov.uk/id/local-authority/30UE,Capital,Capital,Streetscene & Leisure Contracts,Main Contractor,3007,Capital Expenditure,Capital,"Conservation Plan - Astley Hall.75% of a the agreed fee of 8600 plus VAT of 1720. ",20/08/2014,97229,"6,450.00",Capital,"AHP - Architectural History Practice, Ltd",66375
Chorley Borough Council,http://statistics.data.gov.uk/id/local-authority/30UE,Unapportionable Central OHeads,1009,Shared Service Arrangement,Car Leasing Payment,14100,Direct Employee Expenses,5001,Car Leasing Payment,13/08/2014,97100,279.93,Revenue,Alphabet (Uk) Fleet Management Ltd,16651
Chorley Borough Council,http://statistics.data.gov.uk/id/local-authority/30UE,Unapportionable Central OHeads,1009,Shared Service Arrangement,Car Leasing Payment,14100,Direct Employee Expenses,5001,Car Leasing Payment,13/08/2014,97100,25.30,Revenue,Alphabet (Uk) Fleet Management Ltd,16651
Chorley Borough Council,http://statistics.data.gov.uk/id/local-authority/30UE,Corporate Management,1008,Shared Service Arrangement,Car Leasing Payment,14100,Direct Employee Expenses,5001,Car Leasing Payment,13/08/2014,97100,284.89,Revenue,Alphabet (Uk) Fleet Management Ltd,16651
Chorley Borough Council,http://statistics.data.gov.uk/id/local-authority/30UE,Corporate Management,1008,Shared Service Arrangement,Car Leasing Payment,14100,Direct Employee Expenses,5001,Car Leasing Payment,13/08/2014,97100,24.80,Revenue,Alphabet (Uk) Fleet Management Ltd,16651
Chorley Borough Council,http://statistics.data.gov.uk/id/local-authority/30UE,Control Accounts,Control,Shared Service Arrangement,Manual Control Account,1,Balance Sheet,Balance,Car Leasing Payment,13/08/2014,97100,-24.80,Revenue,Alphabet (Uk) Fleet Management Ltd,16651
Chorley Borough Council,http://statistics.data.gov.uk/id/local-authority/30UE,Unapportionable Central OHeads,1009,Shared Service Arrangement,Car Leasing Payment,14100,Direct Employee Expenses,5001,Car Leasing Payment,13/08/2014,97100,327.60,Revenue,Alphabet (Uk) Fleet Management Ltd,16651
Chorley Borough Council,http://statistics.data.gov.uk/id/local-authority/30UE,Unapportionable Central OHeads,1009,Shared Service Arrangement,Car Leasing Payment,14100,Direct Employee Expenses,5001,Car Leasing Payment,13/08/2014,97100,26.70,Revenue,Alphabet (Uk) Fleet Management Ltd,16651
Chorley Borough Council,http://statistics.data.gov.uk/id/local-authority/30UE,Corporate Management,1008,Shared Service Arrangement,Car Leasing Payment,14100,Direct Employee Expenses,5001,Car Leasing Payment,13/08/2014,97101,"3,009.63",Revenue,Alphabet (Uk) Fleet Management Ltd,16651
Chorley Borough Council,http://statistics.data.gov.uk/id/local-authority/30UE,Corporate Management,1008,Shared Service Arrangement,Car Leasing Payment,14100,Direct Employee Expenses,5001,Car Leasing Payment,13/08/2014,97101,272.35,Revenue,Alphabet (Uk) Fleet Management Ltd,16651
Chorley Borough Council,http://statistics.data.gov.uk/id/local-authority/30UE,Economic Development,1096,Economic Development,Cleaning Materials,40019,"Equipment, Furniture & Materia",5023,Please supply items as per email ,27/08/2014,97333,427.47,Revenue,Amtoll Ltd,21738
Chorley Borough Council,http://statistics.data.gov.uk/id/local-authority/30UE,Unapportionable Central OHeads,1009,Streetscene & Leisure Contracts,Cleaning Materials,40019,"Equipment, Furniture & Materia",5023,Jangro Pine Disenfectant.  Product Code BC018-5.  5 litre container.,27/08/2014,97336,14.40,Revenue,Amtoll Ltd,21738
Chorley Borough Council,http://statistics.data.gov.uk/id/local-authority/30UE,Unapportionable Central OHeads,1009,Streetscene & Leisure Contracts,Cleaning Materials,40019,"Equipment, Furniture & Materia",5023,Gel Air Freshner.  Product Code BC115. Unit size 1 x 12,27/08/2014,97336,5.86,Revenue,Amtoll Ltd,21738
Chorley Borough Council,http://statistics.data.gov.uk/id/local-authority/30UE,Service Management & Support,1009,Streetscene & Leisure Contracts,Protective Clothing,40040,"Clothing, Uniforms and Laundry",5025,Jangro Latex Gloves.  Size - Large.  Product Code DG155.,27/08/2014,97336,84.60,Revenue,Amtoll Ltd,21738
Chorley Borough Council,http://statistics.data.gov.uk/id/local-authority/30UE,Unapportionable Central OHeads,1009,Streetscene & Leisure Contracts,Cleaning Materials,40019,"Equipment, Furniture & Materia",5023,Centrefeed Roll 150m.  Blue 2 ply.  Product Code AF113.  1 x 6,27/08/2014,97336,37.95,Revenue,Amtoll Ltd,21738
Chorley Borough Council,http://statistics.data.gov.uk/id/local-authority/30UE,Service Management & Support,1009,Streetscene & Leisure Contracts,Supplies & Consumables -Street Cleansing,40235,"Equipment, Furniture & Materia",5023,10`` Hygeine Roll 50m white.  Product Code AG116. 1 x 18,27/08/2014,97336,66.68,Revenue,Amtoll Ltd,21738
Chorley Borough Council,http://statistics.data.gov.uk/id/local-authority/30UE,Service Management & Support,1009,Streetscene & Leisure Contracts,Supplies & Consumables -Street Cleansing,40235,"Equipment, Furniture & Materia",5023,Jangro Patient Wet Wipes.  Prodcut Code CG220,27/08/2014,97336,38.30,Revenue,Amtoll Ltd,21738
Chorley Borough Council,http://statistics.data.gov.uk/id/local-authority/30UE,Unapportionable Central OHeads,1009,Streetscene & Leisure Contracts,Cleaning Materials,40019,"Equipment, Furniture & Materia",5023,Jangro Mini Jumbo Toilet Rolls.  Product Code AD301,27/08/2014,97336,14.30,Revenue,Amtoll Ltd,21738
Chorley Borough Council,http://statistics.data.gov.uk/id/local-authority/30UE,Unapportionable Central OHeads,1009,Streetscene & Leisure Contracts,Cleaning Materials,40019,"Equipment, Furniture & Materia",5023,Jangro 320 sheet toilet roll.  1 x 36 Product code AC003,27/08/2014,97336,13.20,Revenue,Amtoll Ltd,21738
Chorley Borough Council,http://statistics.data.gov.uk/id/local-authority/30UE,Homelessness,1075,Housing,Rental Bond Scheme,40241,Miscellaneous Expenses,5034,Payment to Landlord for claims against the Rental Bond Scheme in respect NAME AND ADDRESS REDACTED,01/08/2014,96835,390.00,Revenue,NAME REDACTED,59484
Chorley Borough Council,http://statistics.data.gov.uk/id/local-authority/30UE,Unapportionable Central OHeads,1009,"Customer, ICT & Transactional",Computer Equipment-Maintenance,40105,Communication and Computing,5028,Managed infrastructure contract - August 2014,27/08/2014,96994,"2,000.00",Revenue,ANS Group,22502
Chorley Borough Council,http://statistics.data.gov.uk/id/local-authority/30UE,Democratic Represent and  Mgnt,1007,Streetscene & Leisure Contracts,Exhibitions & Special Events,40158,Miscellaneous Expenses,5034,jazz band 24th may astley hall,15/08/2014,97154,450.00,Revenue,Anthony Mason,65367
Chorley Borough Council,http://statistics.data.gov.uk/id/local-authority/30UE,Service Management & Support,1009,Streetscene & Leisure Contracts,External Contractor,40198,Miscellaneous Expenses,5034,Adlington Cemetery railings painting (inc rub down and prep for 2 coats of black satin /matt),20/08/2014,97002,"1,800.00",Revenue,Ark Welding Ltd,18154
Chorley Borough Council,http://statistics.data.gov.uk/id/local-authority/30UE,Homelessness,1075,Shared Service Arrangement,Car Leasing Payment,14100,Direct Employee Expenses,5001,Vehicle Leasing,22/08/2014,97153,"3,684.00",Revenue,Arnold Clark Finance Ltd,20685
Chorley Borough Council,http://statistics.data.gov.uk/id/local-authority/30UE,Flood Defence & Land Drainage,1046,Shared Service Arrangement,Car Leasing Payment,14100,Direct Employee Expenses,5001,Vehicle Leasing,22/08/2014,97256,"3,192.00",Revenue,Arnold Clark Finance Ltd,20685
Chorley Borough Council,http://statistics.data.gov.uk/id/local-authority/30UE,Flood Defence & Land Drainage,1046,Shared Service Arrangement,Car Leasing Payment,14100,Direct Employee Expenses,5001,Vehicle Leasing,22/08/2014,97256,287.07,Revenue,Arnold Clark Finance Ltd,20685
Chorley Borough Council,http://statistics.data.gov.uk/id/local-authority/30UE,Flood Defence & Land Drainage,1046,Shared Service Arrangement,Car Leasing Payment,14100,Direct Employee Expenses,5001,Car Leasing Payment,29/08/2014,97391,"3,264.00",Revenue,Arnold Clark Finance Ltd,20685
Chorley Borough Council,http://statistics.data.gov.uk/id/local-authority/30UE,Flood Defence & Land Drainage,1046,Shared Service Arrangement,Car Leasing Payment,14100,Direct Employee Expenses,5001,Car Leasing Payment,29/08/2014,97391,283.31,Revenue,Arnold Clark Finance Ltd,20685
Chorley Borough Council,http://statistics.data.gov.uk/id/local-authority/30UE,Corporate Management,1008,Shared Service Arrangement,Car Leasing Payment,14100,Direct Employee Expenses,5001,Car Leasing Payment,29/08/2014,97392,"3,900.00",Revenue,Arnold Clark Finance Ltd,20685
Chorley Borough Council,http://statistics.data.gov.uk/id/local-authority/30UE,Corporate Management,1008,Shared Service Arrangement,Car Leasing Payment,14100,Direct Employee Expenses,5001,Car Leasing Payment,29/08/2014,97392,343.96,Revenue,Arnold Clark Finance Ltd,20685
Chorley Borough Council,http://statistics.data.gov.uk/id/local-authority/30UE,Unapportionable Central OHeads,1009,Shared Service Arrangement,Car Leasing Payment,14100,Direct Employee Expenses,5001,Car Leasing Payment,29/08/2014,97393,"2,880.00",Revenue,Arnold Clark Finance Ltd,20685
Chorley Borough Council,http://statistics.data.gov.uk/id/local-authority/30UE,Unapportionable Central OHeads,1009,Shared Service Arrangement,Car Leasing Payment,14100,Direct Employee Expenses,5001,Car Leasing Payment,29/08/2014,97393,259.74,Revenue,Arnold Clark Finance Ltd,20685
Chorley Borough Council,http://statistics.data.gov.uk/id/local-authority/30UE,Development Control,1091,Shared Service Arrangement,Car Leasing Payment,14100,Direct Employee Expenses,5001,Car Leasing Payment,29/08/2014,97394,"2,964.00",Revenue,Arnold Clark Finance Ltd,20685
Chorley Borough Council,http://statistics.data.gov.uk/id/local-authority/30UE,Development Control,1091,Shared Service Arrangement,Car Leasing Payment,14100,Direct Employee Expenses,5001,Car Leasing Payment,29/08/2014,97394,238.14,Revenue,Arnold Clark Finance Ltd,20685
Chorley Borough Council,http://statistics.data.gov.uk/id/local-authority/30UE,Development Control,1091,Shared Service Arrangement,Car Leasing Payment,14100,Direct Employee Expenses,5001,Car Leasing Payment,29/08/2014,97395,"2,892.00",Revenue,Arnold Clark Finance Ltd,20685
Chorley Borough Council,http://statistics.data.gov.uk/id/local-authority/30UE,Development Control,1091,Shared Service Arrangement,Car Leasing Payment,14100,Direct Employee Expenses,5001,Car Leasing Payment,29/08/2014,97395,241.19,Revenue,Arnold Clark Finance Ltd,20685
Chorley Borough Council,http://statistics.data.gov.uk/id/local-authority/30UE,Corporate Management,1008,Shared Service Arrangement,Car Leasing Payment,14100,Direct Employee Expenses,5001,Car Leasing Payment,29/08/2014,97396,"2,160.00",Revenue,Arnold Clark Finance Ltd,20685
Chorley Borough Council,http://statistics.data.gov.uk/id/local-authority/30UE,Corporate Management,1008,Shared Service Arrangement,Car Leasing Payment,14100,Direct Employee Expenses,5001,Car Leasing Payment,29/08/2014,97396,187.35,Revenue,Arnold Clark Finance Ltd,20685
Chorley Borough Council,http://statistics.data.gov.uk/id/local-authority/30UE,Unapportionable Central OHeads,1009,Shared Service Arrangement,Car Leasing Payment,14100,Direct Employee Expenses,5001,Car Leasing Payment,29/08/2014,97397,"3,504.00",Revenue,Arnold Clark Finance Ltd,20685
Chorley Borough Council,http://statistics.data.gov.uk/id/local-authority/30UE,Unapportionable Central OHeads,1009,Shared Service Arrangement,Car Leasing Payment,14100,Direct Employee Expenses,5001,Car Leasing Payment,29/08/2014,97397,328.45,Revenue,Arnold Clark Finance Ltd,20685
Chorley Borough Council,http://statistics.data.gov.uk/id/local-authority/30UE,Service Management & Support,1009,Streetscene & Leisure Contracts,Hire Of Transport,30028,Contrct Hire & Operating Lease,5018,Contract hire of 2 Nissan Leaf cars Reg PL13CNA and PL13CNJ  at price quoted,20/08/2014,97227,"6,777.64",Revenue,Arval UK Ltd,18240
Chorley Borough Council,http://statistics.data.gov.uk/id/local-authority/30UE,Unapportionable Central OHeads,1009,HR & Org. Development,Training Course Fees,17010,Indirect Employee Expenses,5002,Business Rates - How the System Works 8th September 2014 Council Tax - How the System Works 1st October 2014,27/08/2014,97272,"1,350.00",Revenue,Arvato Government Services Ltd,22388
Chorley Borough Council,http://statistics.data.gov.uk/id/local-authority/30UE,Corporate Management,1008,Health Environment & Neighbourhoods,Taxi Testing & Vehicle Safety Report,40234,Services,5027,Taxi Test,13/08/2014,97031,108.29,Revenue,Autocentre LTD,21651
Chorley Borough Council,http://statistics.data.gov.uk/id/local-authority/30UE,Corporate Management,1008,Health Environment & Neighbourhoods,Taxi Testing & Vehicle Safety Report,40234,Services,5027,MOT,13/08/2014,97031,713.05,Revenue,Autocentre LTD,21651
Chorley Borough Council,http://statistics.data.gov.uk/id/local-authority/30UE,Unapportionable Central OHeads,1009,Shared Service Arrangement,Computer Equipment-Purchase,40098,Communication and Computing,5028,Smart Cover for Apple Ipad Air & Screen Protector x20,27/08/2014,97351,99.80,Revenue,Barclaycard Commercial,59848
Chorley Borough Council,http://statistics.data.gov.uk/id/local-authority/30UE,Unapportionable Central OHeads,1009,Shared Service Arrangement,Computer Equipment-Purchase,40098,Communication and Computing,5028,Accessories for Ipads,27/08/2014,97351,239.55,Revenue,Barclaycard Commercial,59848
Chorley Borough Council,http://statistics.data.gov.uk/id/local-authority/30UE,Economic Development,1096,Shared Service Arrangement,Promotional Expenses,40159,Miscellaneous Expenses,5034,Mailchimp,27/08/2014,97351,18.27,Revenue,Barclaycard Commercial,59848
Chorley Borough Council,http://statistics.data.gov.uk/id/local-authority/30UE,Flood Defence & Land Drainage,1046,Shared Service Arrangement,Training Course Fees,17010,Indirect Employee Expenses,5002,15/04/2014 CIEH - HHSRS Enforcement Training 17/06/14,27/08/2014,97351,340.00,Revenue,Barclaycard Commercial,59848
Chorley Borough Council,http://statistics.data.gov.uk/id/local-authority/30UE,Flood Defence & Land Drainage,1046,Shared Service Arrangement,Training Allowance,14005,Direct Employee Expenses,5001,CIEH - HHSRS Enforcement Training 17/06/14,27/08/2014,97351,170.00,Revenue,Barclaycard Commercial,59848
Chorley Borough Council,http://statistics.data.gov.uk/id/local-authority/30UE,Flood Defence & Land Drainage,1046,Shared Service Arrangement,Training Course Fees,17010,Indirect Employee Expenses,5002,CIEH - Understanding & Applying HHSRS 11/06/14,27/08/2014,97351,340.00,Revenue,Barclaycard Commercial,59848
Chorley Borough Council,http://statistics.data.gov.uk/id/local-authority/30UE,Flood Defence & Land Drainage,1046,Shared Service Arrangement,Training Course Fees,17010,Indirect Employee Expenses,5002,CIEH Stat Nuis Powers & Practice 25/06/14,27/08/2014,97351,170.00,Revenue,Barclaycard Commercial,59848
Chorley Borough Council,http://statistics.data.gov.uk/id/local-authority/30UE,Flood Defence & Land Drainage,1046,Shared Service Arrangement,Training Allowance,14005,Direct Employee Expenses,5001,CIEH Stat Nuis Powers & Practice 25/06/14,27/08/2014,97351,880.00,Revenue,Barclaycard Commercial,59848
Chorley Borough Council,http://statistics.data.gov.uk/id/local-authority/30UE,Unapportionable Central OHeads,1009,Shared Service Arrangement,Publicity - Advertising,40157,Miscellaneous Expenses,5034,29/03/2014 Facebook Ads Payment,27/08/2014,97351,18.53,Revenue,Barclaycard Commercial,59848
Chorley Borough Council,http://statistics.data.gov.uk/id/local-authority/30UE,Unapportionable Central OHeads,1009,Shared Service Arrangement,Publicity - Advertising,40157,Miscellaneous Expenses,5034,03/2014 Facebook Ads Payment,27/08/2014,97351,4.70,Revenue,Barclaycard Commercial,59848
Chorley Borough Council,http://statistics.data.gov.uk/id/local-authority/30UE,Unapportionable Central OHeads,1009,Shared Service Arrangement,First Aid Supplies,40031,"Equipment, Furniture & Materia",5023,31/03/2014 Reflective Armbands,27/08/2014,97351,64.80,Revenue,Barclaycard Commercial,59848
Chorley Borough Council,http://statistics.data.gov.uk/id/local-authority/30UE,Unapportionable Central OHeads,1009,Shared Service Arrangement,Legal Fees,40171,Miscellaneous Expenses,5034,"01/04/2014 Court Fee Travellers, Fleet Street Car Park",27/08/2014,97351,200.00,Revenue,Barclaycard Commercial,59848
Chorley Borough Council,http://statistics.data.gov.uk/id/local-authority/30UE,Homelessness,1075,Shared Service Arrangement,Prevention Fund,40242,Miscellaneous Expenses,5034,04/04/2014 Emergency Transport Fees,27/08/2014,97351,16.10,Revenue,Barclaycard Commercial,59848
Chorley Borough Council,http://statistics.data.gov.uk/id/local-authority/30UE,Unapportionable Central OHeads,1009,Shared Service Arrangement,Other Fees,40212,Miscellaneous Expenses,5034,04/04/2014 Wristbands Communications,27/08/2014,97351,465.00,Revenue,Barclaycard Commercial,59848
Chorley Borough Council,http://statistics.data.gov.uk/id/local-authority/30UE,Unapportionable Central OHeads,1009,Shared Service Arrangement,Publicity - Advertising,40157,Miscellaneous Expenses,5034,10/04/2014 Facebook Ads Payment,27/08/2014,97351,1.52,Revenue,Barclaycard Commercial,59848
Chorley Borough Council,http://statistics.data.gov.uk/id/local-authority/30UE,Unapportionable Central OHeads,1009,Shared Service Arrangement,Publicity - Advertising,40157,Miscellaneous Expenses,5034,21/04/2014 Facebook Ads Payment,27/08/2014,97351,24.94,Revenue,Barclaycard Commercial,59848
Chorley Borough Council,http://statistics.data.gov.uk/id/local-authority/30UE,Unapportionable Central OHeads,1009,Shared Service Arrangement,Publicity - Advertising,40157,Miscellaneous Expenses,5034,23/04/2014 Facebook Ads Payment,27/08/2014,97351,20.75,Revenue,Barclaycard Commercial,59848
Chorley Borough Council,http://statistics.data.gov.uk/id/local-authority/30UE,Unapportionable Central OHeads,1009,Shared Service Arrangement,Publicity - Advertising,40157,Miscellaneous Expenses,5034,25/04/2014 Facebook Ads Payment ,27/08/2014,97351,22.17,Revenue,Barclaycard Commercial,59848
Chorley Borough Council,http://statistics.data.gov.uk/id/local-authority/30UE,Unapportionable Central OHeads,1009,Shared Service Arrangement,Publicity - Advertising,40157,Miscellaneous Expenses,5034,26/04/2014 Facebook Ads Payment,27/08/2014,97351,15.14,Revenue,Barclaycard Commercial,59848
Chorley Borough Council,http://statistics.data.gov.uk/id/local-authority/30UE,Unapportionable Central OHeads,1009,Shared Service Arrangement,Legal Fees,40171,Miscellaneous Expenses,5034,16/04/2014 Court fees,27/08/2014,97351,795.00,Revenue,Barclaycard Commercial,59848
Chorley Borough Council,http://statistics.data.gov.uk/id/local-authority/30UE,Corporate Management,1008,Shared Service Arrangement,Bank Charges,40151,Miscellaneous Expenses,5034,July Charges,13/08/2014,97034,469.91,Revenue,Barclaycard Merchant Services,61601
Chorley Borough Council,http://statistics.data.gov.uk/id/local-authority/30UE,Corporate Management,1008,Shared Service Arrangement,Bank Charges,40151,Miscellaneous Expenses,5034,July Charges,13/08/2014,97035,338.57,Revenue,Barclaycard Merchant Services,61601
Chorley Borough Council,http://statistics.data.gov.uk/id/local-authority/30UE,Corporate Management,1008,Shared Service Arrangement,Bank Charges,40151,Miscellaneous Expenses,5034,July Charges,13/08/2014,97036,353.50,Revenue,Barclaycard Merchant Services,61601
Chorley Borough Council,http://statistics.data.gov.uk/id/local-authority/30UE,Unapportionable Central OHeads,1009,Policy & Performance,Exhibitions & Special Events,40158,Miscellaneous Expenses,5034,Rock FM providing family show in Astley Park 6 July 2014,13/08/2014,97011,"3,975.88",Revenue,Bauer Active Ltd,50574
Chorley Borough Council,http://statistics.data.gov.uk/id/local-authority/30UE,Flood Defence & Land Drainage,1046,Health Environment & Neighbourhoods,Tools & Equipment - Maintenance,40005,"Equipment, Furniture & Materia",5023,Servicing and maintenance of CCTV,01/08/2014,96859,255.00,Revenue,Baydale Control Systems,21154
Chorley Borough Council,http://statistics.data.gov.uk/id/local-authority/30UE,Flood Defence & Land Drainage,1046,Health Environment & Neighbourhoods,Tools & Equipment - Maintenance,40005,"Equipment, Furniture & Materia",5023,Servicing and maintenance of CCTV,01/08/2014,96862,398.36,Revenue,Baydale Control Systems,21154
Chorley Borough Council,http://statistics.data.gov.uk/id/local-authority/30UE,Flood Defence & Land Drainage,1046,Health Environment & Neighbourhoods,Tools & Equipment - Maintenance,40005,"Equipment, Furniture & Materia",5023,Servicing and maintenance of CCTV,01/08/2014,96864,781.45,Revenue,Baydale Control Systems,21154
Chorley Borough Council,http://statistics.data.gov.uk/id/local-authority/30UE,Flood Defence & Land Drainage,1046,Health Environment & Neighbourhoods,Tools & Equipment - Maintenance,40005,"Equipment, Furniture & Materia",5023,Servicing and maintenance of CCTV,29/08/2014,97375,350.63,Revenue,Baydale Control Systems,21154
Chorley Borough Council,http://statistics.data.gov.uk/id/local-authority/30UE,Flood Defence & Land Drainage,1046,Health Environment & Neighbourhoods,Tools & Equipment - Maintenance,40005,"Equipment, Furniture & Materia",5023,Servicing and maintenance of CCTV,29/08/2014,97387,"2,267.50",Revenue,Baydale Control Systems,21154
Chorley Borough Council,http://statistics.data.gov.uk/id/local-authority/30UE,Flood Defence & Land Drainage,1046,Health Environment & Neighbourhoods,Tools & Equipment - Maintenance,40005,"Equipment, Furniture & Materia",5023,Servicing and maintenance of CCTV,29/08/2014,97388,825.00,Revenue,Baydale Control Systems,21154
Chorley Borough Council,http://statistics.data.gov.uk/id/local-authority/30UE,Unapportionable Central OHeads,1009,"Customer, ICT & Transactional",Consultants` Fees,40077,Services,5027,"Support Service at agreed daily rate Support Service as agreed with Customer, Transactional and ICT services.",13/08/2014,97012,"2,250.00",Revenue,REDACTED PERSONAL DATA,22238
Chorley Borough Council,http://statistics.data.gov.uk/id/local-authority/30UE,Unapportionable Central OHeads,1009,HR & Org. Development,Corp Training Organisational Development,17006,Indirect Employee Expenses,5002,Course - Managing Differences & Challenging Conversations,20/08/2014,97248,"1,893.65",Revenue,Benson & Company,66080
Chorley Borough Council,http://statistics.data.gov.uk/id/local-authority/30UE,Unapportionable Central OHeads,1009,Shared Service Arrangement,Rent/Hire Of Premises,20017,Premises Rents,5007,Hire of Banqueting Suite on 09/09/2014,22/08/2014,97305,600.00,Revenue,Birmingham City Council,66373
Chorley Borough Council,http://statistics.data.gov.uk/id/local-authority/30UE,Democratic Represent and  Mgnt,1007,Streetscene & Leisure Contracts,Miscellaneous Expenses,40200,Miscellaneous Expenses,5034,A1 lectern with Multiguard GRP panel for Astley Walled Garden Quotation Number BSG6139,13/08/2014,97114,825.00,Revenue,Border Signs and Graphics,21793
Chorley Borough Council,http://statistics.data.gov.uk/id/local-authority/30UE,Flood Defence & Land Drainage,1046,Health Environment & Neighbourhoods,Children's Activities,40188,Miscellaneous Expenses,5034,Delivery of punch and judy on Wednesday 6th August for Playday,15/08/2014,97152,250.00,Revenue,Brian Gore,18370
Chorley Borough Council,http://statistics.data.gov.uk/id/local-authority/30UE,Unapportionable Central OHeads,1009,Policy & Performance,Exhibitions & Special Events,40158,Miscellaneous Expenses,5034,Children`s entertainer for town centre summer event,27/08/2014,97224,500.00,Revenue,Brian Gore,18370
Chorley Borough Council,http://statistics.data.gov.uk/id/local-authority/30UE,Economic Development,1096,Economic Development,Grants To Other Organisations,40127,Grants and Subscriptions,5031,Starting in Business Grant Payment,20/08/2014,97170,250.00,Revenue,NAME REDACTED,66513
Chorley Borough Council,http://statistics.data.gov.uk/id/local-authority/30UE,Democratic Represent and  Mgnt,1007,Governance,Gas,20014,Energy Costs,5006,Coach House,20/08/2014,97242,69.14,Revenue,British Gas Business,22242
Chorley Borough Council,http://statistics.data.gov.uk/id/local-authority/30UE,Service Management & Support,1009,Governance,Gas,20014,Energy Costs,5006,Yarrow Valley Park,20/08/2014,97242,12.58,Revenue,British Gas Business,22242
Chorley Borough Council,http://statistics.data.gov.uk/id/local-authority/30UE,Unapportionable Central OHeads,1009,Governance,Gas,20014,Energy Costs,5006,Bengal Street,20/08/2014,97242,34.69,Revenue,British Gas Business,22242
Chorley Borough Council,http://statistics.data.gov.uk/id/local-authority/30UE,Community Development,1097,Governance,Gas,20014,Energy Costs,5006,Accounting Adv Srvcs,20/08/2014,97242,15.71,Revenue,British Gas Business,22242
Chorley Borough Council,http://statistics.data.gov.uk/id/local-authority/30UE,Democratic Represent and  Mgnt,1007,Governance,Gas,20014,Energy Costs,5006,Clayton Brook Community Centre,20/08/2014,97242,17.93,Revenue,British Gas Business,22242
Chorley Borough Council,http://statistics.data.gov.uk/id/local-authority/30UE,Democratic Represent and  Mgnt,1007,Governance,Gas,20014,Energy Costs,5006,Astley Cottage,20/08/2014,97242,15.00,Revenue,British Gas Business,22242
Chorley Borough Council,http://statistics.data.gov.uk/id/local-authority/30UE,Democratic Represent and  Mgnt,1007,Governance,Gas,20014,Energy Costs,5006,Astley Hall Farm House,20/08/2014,97242,37.21,Revenue,British Gas Business,22242
Chorley Borough Council,http://statistics.data.gov.uk/id/local-authority/30UE,Democratic Represent and  Mgnt,1007,Governance,Gas,20014,Energy Costs,5006,Astley Village Community Centre,20/08/2014,97242,13.34,Revenue,British Gas Business,22242
Chorley Borough Council,http://statistics.data.gov.uk/id/local-authority/30UE,Democratic Represent and  Mgnt,1007,Governance,Gas,20014,Energy Costs,5006,Eaves Green Community Centre,20/08/2014,97242,15.86,Revenue,British Gas Business,22242
Chorley Borough Council,http://statistics.data.gov.uk/id/local-authority/30UE,Democratic Represent and  Mgnt,1007,Governance,Gas,20014,Energy Costs,5006,Astley Hall,20/08/2014,97242,198.66,Revenue,British Gas Business,22242
Chorley Borough Council,http://statistics.data.gov.uk/id/local-authority/30UE,Unapportionable Central OHeads,1009,Governance,Gas,20014,Energy Costs,5006,Union Street Offices,20/08/2014,97242,545.93,Revenue,British Gas Business,22242
Chorley Borough Council,http://statistics.data.gov.uk/id/local-authority/30UE,Unapportionable Central OHeads,1009,Governance,Gas,20014,Energy Costs,5006,Town Hall,20/08/2014,97242,10.46,Revenue,British Gas Business,22242
Chorley Borough Council,http://statistics.data.gov.uk/id/local-authority/30UE,Homelessness,1075,Governance,Gas,20014,Energy Costs,5006,Cotswold House,20/08/2014,97242,370.88,Revenue,British Gas Business,22242
Chorley Borough Council,http://statistics.data.gov.uk/id/local-authority/30UE,Unapportionable Central OHeads,1009,"Customer, ICT & Transactional",Photocopier Charges,40047,"Printing, Stationery & General",5026,Rental charges for Xerox wide format printer at Union Street 06/07/14 to 05/10/14,27/08/2014,96895,296.57,Revenue,Bytes Document Solutions,20052
Chorley Borough Council,http://statistics.data.gov.uk/id/local-authority/30UE,Service Management & Support,1009,Streetscene & Leisure Contracts,Supplies-Grounds Maintenance,40025,"Equipment, Furniture & Materia",5023,Highway C2 fast setting mortar delivered,13/08/2014,97092,412.00,Revenue,C & W BERRY LIMITED,18180
Chorley Borough Council,http://statistics.data.gov.uk/id/local-authority/30UE,Unapportionable Central OHeads,1009,Streetscene & Leisure Contracts,Refuse Collection,20037,Cleaning and Domestic Supplies,5012,Carryout emptying of interceptor and gullies at Bengal St depot at price quoted,20/08/2014,97159,300.00,Revenue,C J Lyon,16579
Chorley Borough Council,http://statistics.data.gov.uk/id/local-authority/30UE,Unapportionable Central OHeads,1009,"Customer, ICT & Transactional",Emergency Call Out System,40096,Communication and Computing,5028,Out of Hours Standing Charge July 2014,15/08/2014,96977,738.00,Revenue,CallCare Ltd,20257
Chorley Borough Council,http://statistics.data.gov.uk/id/local-authority/30UE,Democratic Represent and  Mgnt,1007,Streetscene & Leisure Contracts,External Contractor,40198,Miscellaneous Expenses,5034,Creation of new bark chip and manure bays at Crosse Hall Allotments and surfacing of car park.,15/08/2014,97155,"2,580.00",Revenue,CH Civils Ltd,22541
Chorley Borough Council,http://statistics.data.gov.uk/id/local-authority/30UE,Democratic Represent and  Mgnt,1007,Streetscene & Leisure Contracts,External Contractor,40198,Miscellaneous Expenses,5034,New access path and ramp at Moor Road allotments,15/08/2014,97156,"1,000.00",Revenue,CH Civils Ltd,22541
Chorley Borough Council,http://statistics.data.gov.uk/id/local-authority/30UE,Community Development,1097,Governance,Grants To Other Organisations,40127,Grants and Subscriptions,5031,Councillor Community Grant Fund 2014/2015,13/08/2014,97118,250.00,Revenue,Charnock Richard Community Centre Trust,22139
Chorley Borough Council,http://statistics.data.gov.uk/id/local-authority/30UE,Community Development,1097,Governance,Grants To Other Organisations,40127,Grants and Subscriptions,5031,Councillor Community Grant Fund 2014/2015,13/08/2014,97115,250.00,Revenue,Chorley & South Ribble Shopmobility,18403
Chorley Borough Council,http://statistics.data.gov.uk/id/local-authority/30UE,Corporate Management,1008,Health Environment & Neighbourhoods,Taxi Testing & Vehicle Safety Report,40234,Services,5027,Taxi Test,13/08/2014,97037,136.80,Revenue,Chorley Autocare Ltd,17110
Chorley Borough Council,http://statistics.data.gov.uk/id/local-authority/30UE,Corporate Management,1008,Health Environment & Neighbourhoods,Taxi Testing & Vehicle Safety Report,40234,Services,5027,MOT,13/08/2014,97037,877.60,Revenue,Chorley Autocare Ltd,17110
Chorley Borough Council,http://statistics.data.gov.uk/id/local-authority/30UE,Community Development,1097,Policy & Performance,Core Funding Grants,40133,Grants and Subscriptions,5031,Small Communtiy Funsing,13/08/2014,97038,250.00,Revenue,Chorley Clients Forum,53718
Chorley Borough Council,http://statistics.data.gov.uk/id/local-authority/30UE,Flood Defence & Land Drainage,1046,Health Environment & Neighbourhoods,Miscellaneous Expenses,40200,Miscellaneous Expenses,5034,"1st month�s rent for NAME REDACTED Tenancy number:  1010367, WTwF code: CTF244 ADDRESS REDACTED",29/08/2014,97379,345.67,Revenue,Chorley Community Housing,20531
Chorley Borough Council,http://statistics.data.gov.uk/id/local-authority/30UE,Unapportionable Central OHeads,1009,Governance,Tools & Equipment - Purchase,40003,"Equipment, Furniture & Materia",5023,"20 x 18W 4 pin dulux de 840 20 x 26W 4 pin dulux de 84050 x  2` 18W 4000K Col 840 tube 20 x  Dulux L 18W/8",20/08/2014,97016,437.24,Revenue,Chorley Electrical Traders Ltd,16330
Chorley Borough Council,http://statistics.data.gov.uk/id/local-authority/30UE,Elections,1012,Governance,Rent/Hire Of Premises,20017,Premises Rents,5007,HIRE OF HALL FOR POLLING STATION ON 22 MAY 2014,13/08/2014,97021,335.00,Revenue,Chorley Methodist Church,18422
Chorley Borough Council,http://statistics.data.gov.uk/id/local-authority/30UE,Democratic Represent and  Mgnt,1007,Streetscene & Leisure Contracts,Burglar Alarms & Security Systems,20075,Fixtures and Fittings,5010,Annual Contract 01/10/2014 to 30/09/2015,13/08/2014,97091,"1,504.38",Revenue,Chubb Emergency Response,16965
Chorley Borough Council,http://statistics.data.gov.uk/id/local-authority/30UE,Elections,1012,Governance,Rent/Hire Of Premises,20017,Premises Rents,5007,ROOM HIRE FOR POLLING STATION 22 MAY 2014,29/08/2014,97211,250.00,Revenue,Clayton-Le-Woods Community Centre,18526
Chorley Borough Council,http://statistics.data.gov.uk/id/local-authority/30UE,Flood Defence & Land Drainage,1046,Streetscene & Leisure Contracts,Miscellaneous Expenses,40200,Miscellaneous Expenses,5034,Supply and erect a 2 bay cantilever with 500mm returns flat roof Commutaport shelter (2.2x1.3m) as per quotation,27/08/2014,97306,"1,625.00",Revenue,Commutaports,56228
Chorley Borough Council,http://statistics.data.gov.uk/id/local-authority/30UE,Service Management & Support,1009,Streetscene & Leisure Contracts,External Contractor,40198,Miscellaneous Expenses,5034,Hire of wagon/Hiab and driver for instilation of antique cannons at Astley Park court yard area as requested,27/08/2014,97346,250.00,Revenue,D Cain & Son Ltd,21353
Chorley Borough Council,http://statistics.data.gov.uk/id/local-authority/30UE,Service Management & Support,1009,Shared Service Arrangement,External Contractor,40198,Miscellaneous Expenses,5034,cis correction,04/08/2014,96882,"6,875.00",Revenue,Danvic Turf Care Ltd,16336
Chorley Borough Council,http://statistics.data.gov.uk/id/local-authority/30UE,Economic Development,1096,Transformation Management,Refuse Collection,20037,Cleaning and Domestic Supplies,5012,Waste Recharge 12/13,27/08/2014,97188,"12,668.00",Revenue,Deloitte LLP,58651
Chorley Borough Council,http://statistics.data.gov.uk/id/local-authority/30UE,Economic Development,1096,Transformation Management,Refuse Collection,20037,Cleaning and Domestic Supplies,5012,Waste Recharge 13/14,27/08/2014,97189,"25,790.13",Revenue,Deloitte LLP,58651
Chorley Borough Council,http://statistics.data.gov.uk/id/local-authority/30UE,Surplus or Deficit on Trading,1019,Transformation Management,Miscellaneous Expenses,40200,Miscellaneous Expenses,5034,Marketing contribution catch-up,20/08/2014,97190,"1,925.00",Revenue,Deloitte LLP,58651
Chorley Borough Council,http://statistics.data.gov.uk/id/local-authority/30UE,Surplus or Deficit on Trading,1019,Policy & Performance,Research & Feasibilities,40079,Services,5027,Market Walk feasibility review � Flat iron opportunity site,22/08/2014,97273,"20,001.00",Revenue,Deloitte LLP,58651
Chorley Borough Council,http://statistics.data.gov.uk/id/local-authority/30UE,Collection Fund Revenue Accoun,,Shared Service Arrangement,NNDR Central Share,2034,Precepts & Collection Fund,Precept,Central Share of Business Rates,26/08/2014,97249,"1,417,064.00",Revenue,Department of Communities and Local Government,16280
Chorley Borough Council,http://statistics.data.gov.uk/id/local-authority/30UE,Collection Fund Revenue Accoun,,Shared Service Arrangement,NNDR Central Share,2034,Precepts & Collection Fund,Precept,deficit,26/08/2014,97249,"-8,668.00",Revenue,Department of Communities and Local Government,16280
Chorley Borough Council,http://statistics.data.gov.uk/id/local-authority/30UE,Non Domestic Rates Redistribut,,Shared Service Arrangement,Tariff to Central Government,49000,Expenditure not in NCOS,,tariff,26/08/2014,97249,"802,792.00",Revenue,Department of Communities and Local Government,16280
Chorley Borough Council,http://statistics.data.gov.uk/id/local-authority/30UE,Economic Development,1096,Economic Development,Training Course Fees,17010,Indirect Employee Expenses,5002,Digital Skills Workshop Delivery x2 sessions at 200 per session,22/08/2014,97300,400.00,Revenue,DigiEnable,57999
Chorley Borough Council,http://statistics.data.gov.uk/id/local-authority/30UE,Corporate Management,1008,Health Environment & Neighbourhoods,CRB Disclosure Fees,40070,Services,5027,15 Disclosure checks for Customer Services (Licensing),08/08/2014,96215,660.00,Revenue,Disclosure & Barring Service,16387
Chorley Borough Council,http://statistics.data.gov.uk/id/local-authority/30UE,Unapportionable Central OHeads,1009,Health Environment & Neighbourhoods,HR Recruitment Expenses,15200,Indirect Employee Expenses,5002,DBS Disclosure certificates,08/08/2014,96215,46.00,Revenue,Disclosure & Barring Service,16387
Chorley Borough Council,http://statistics.data.gov.uk/id/local-authority/30UE,Control Accounts,Control,Shared Service Arrangement,Manual Control Account,1,Balance Sheet,Balance,REFUND,22/08/2014,CRREF31,400.00,Revenue,Eccleston Electrical Services Limited,17529
Chorley Borough Council,http://statistics.data.gov.uk/id/local-authority/30UE,Corporate Management,1008,Transformation Management,Boilers/Central Htg/Controls,20071,Fixtures and Fittings,5010,"Replace existing boiler with Main Combi Elite 30kw condensing boiler, pipe work modifications etc",27/08/2014,97161,"1,503.00",Revenue,Ellesmere Engineering Co Ltd,17520
Chorley Borough Council,http://statistics.data.gov.uk/id/local-authority/30UE,Service Management & Support,1009,Streetscene & Leisure Contracts,Tools & Equipment - Maintenance,40005,"Equipment, Furniture & Materia",5023,Supply items has on Pro-forma number 198405 Proforma No 198284 and 197782 already supplied,13/08/2014,97088,345.60,Revenue,F R Sharrock Ltd,18091
Chorley Borough Council,http://statistics.data.gov.uk/id/local-authority/30UE,Service Management & Support,1009,Streetscene & Leisure Contracts,Tools & Equipment - Maintenance,40005,"Equipment, Furniture & Materia",5023,Supply items has on Pro-forma number 198405 Proforma No 198284 and 197782 already supplied,13/08/2014,97089,424.21,Revenue,F R Sharrock Ltd,18091
Chorley Borough Council,http://statistics.data.gov.uk/id/local-authority/30UE,Service Management & Support,1009,Streetscene & Leisure Contracts,Tools & Equipment - Maintenance,40005,"Equipment, Furniture & Materia",5023,Supply items has on Pro-forma number 198405 Proforma No 198284 and 197782 already supplied,13/08/2014,97090,330.99,Revenue,F R Sharrock Ltd,18091
Chorley Borough Council,http://statistics.data.gov.uk/id/local-authority/30UE,Service Management & Support,1009,Streetscene & Leisure Contracts,Hire Of Transport,30028,Contrct Hire & Operating Lease,5018,Hire of Case tractor and side arm flail for Chorley Council at price quoted,22/08/2014,97148,"1,565.29",Revenue,F R Sharrock Ltd,18091
Chorley Borough Council,http://statistics.data.gov.uk/id/local-authority/30UE,Service Management & Support,1009,Streetscene & Leisure Contracts,Vehicle Maintenance,30045,Direct Transport Costs,5016,Carryout 6 weekly safety inspection on RV14DVB for Olicence compliance,13/08/2014,96998,115.33,Revenue,Freight Transport Assoc Ltd,16333
Chorley Borough Council,http://statistics.data.gov.uk/id/local-authority/30UE,Service Management & Support,1009,Streetscene & Leisure Contracts,Vehicle Maintenance,30045,Direct Transport Costs,5016,Carryout 6 weekly safety inspection on DK56JWO for Olicence compliance,13/08/2014,96998,115.33,Revenue,Freight Transport Assoc Ltd,16333
Chorley Borough Council,http://statistics.data.gov.uk/id/local-authority/30UE,Service Management & Support,1009,Streetscene & Leisure Contracts,Vehicle Maintenance,30045,Direct Transport Costs,5016,Carryout 6 weekly safety inspection on DK05CXG for Olicence compliance,13/08/2014,96998,115.33,Revenue,Freight Transport Assoc Ltd,16333
Chorley Borough Council,http://statistics.data.gov.uk/id/local-authority/30UE,Democratic Represent and  Mgnt,1007,Streetscene & Leisure Contracts,Security Service,40062,Services,5027,All Seasons,15/08/2014,97186,138.79,Revenue,G4S Cash Solutions UK Ltd,22099
Chorley Borough Council,http://statistics.data.gov.uk/id/local-authority/30UE,Democratic Represent and  Mgnt,1007,Streetscene & Leisure Contracts,Security Service,40062,Services,5027,Brinscall Swimming Pool,15/08/2014,97186,54.31,Revenue,G4S Cash Solutions UK Ltd,22099
Chorley Borough Council,http://statistics.data.gov.uk/id/local-authority/30UE,Unapportionable Central OHeads,1009,Streetscene & Leisure Contracts,Security Service,40062,Services,5027,Civic Offices,15/08/2014,97186,54.31,Revenue,G4S Cash Solutions UK Ltd,22099
Chorley Borough Council,http://statistics.data.gov.uk/id/local-authority/30UE,Democratic Represent and  Mgnt,1007,Streetscene & Leisure Contracts,Security Service,40062,Services,5027,Clayton Green Sports Centre,15/08/2014,97186,54.32,Revenue,G4S Cash Solutions UK Ltd,22099
Chorley Borough Council,http://statistics.data.gov.uk/id/local-authority/30UE,Homelessness,1075,Streetscene & Leisure Contracts,Security Service,40062,Services,5027,Cotswold Supported Housing,15/08/2014,97186,27.16,Revenue,G4S Cash Solutions UK Ltd,22099
Chorley Borough Council,http://statistics.data.gov.uk/id/local-authority/30UE,Economic Development,1096,Economic Development,Grants To Other Organisations,40127,Grants and Subscriptions,5031,Business Rate Subsidy 5&6,22/08/2014,97270,164.50,Revenue,Gaurav Dhar,62061
Chorley Borough Council,http://statistics.data.gov.uk/id/local-authority/30UE,Economic Development,1096,Economic Development,Grants To Other Organisations,40127,Grants and Subscriptions,5031,Business Rate Subsidy 5&6,22/08/2014,97270,164.50,Revenue,Gaurav Dhar,62061
Chorley Borough Council,http://statistics.data.gov.uk/id/local-authority/30UE,Surplus or Deficit on Trading,1019,Governance,Electricity,20013,Energy Costs,5006,ADDRESS REDACTED,20/08/2014,97240,262.39,Revenue,Gazprom Energy,56502
Chorley Borough Council,http://statistics.data.gov.uk/id/local-authority/30UE,Central Support Services,1009,"Customer, ICT & Transactional",Computer Equipment-Purchase,40098,Communication and Computing,5028,iPad Air Wi-Fi Cell 16GB Space Grey MD791B/A,22/08/2014,97207,"11,250.00",Revenue,GBM Digital Technologies Ltd,64085
Chorley Borough Council,http://statistics.data.gov.uk/id/local-authority/30UE,Development Control,1091,Planning,Legal Fees,40171,Miscellaneous Expenses,5034,Camelot theme park & Goodyear Busniess Park,20/08/2014,97087,562.50,Revenue,Mr Gilles Cannock - King's Chambers,16463
Chorley Borough Council,http://statistics.data.gov.uk/id/local-authority/30UE,Development Control,1091,Planning,Legal Fees,40171,Miscellaneous Expenses,5034,Former Camelot Theme Park & Goodyear Busniess Park,20/08/2014,97119,"1,012.50",Revenue,Mr Gilles Cannock - King's Chambers,16463
Chorley Borough Council,http://statistics.data.gov.uk/id/local-authority/30UE,Flood Defence & Land Drainage,1046,Health Environment & Neighbourhoods,External Contractor,40198,Miscellaneous Expenses,5034,Reactive and proactive graffiti removal,20/08/2014,97162,"1,246.87",Revenue,Graffiti Removal (North) Ltd,17320
Chorley Borough Council,http://statistics.data.gov.uk/id/local-authority/30UE,Housing Strategy,1069,Shared Service Arrangement,HM Land Registry Fees,40174,Miscellaneous Expenses,5034,land reg,27/08/2014,97358,15.00,Revenue,H M Land Registry,17567
Chorley Borough Council,http://statistics.data.gov.uk/id/local-authority/30UE,Unapportionable Central OHeads,1009,Shared Service Arrangement,HM Land Registry Fees,40174,Miscellaneous Expenses,5034,lamd reg,27/08/2014,97358,70.00,Revenue,H M Land Registry,17567
Chorley Borough Council,http://statistics.data.gov.uk/id/local-authority/30UE,Unapportionable Central OHeads,1009,Shared Service Arrangement,HM Land Registry Fees,40174,Miscellaneous Expenses,5034,land reg,27/08/2014,97358,48.00,Revenue,H M Land Registry,17567
Chorley Borough Council,http://statistics.data.gov.uk/id/local-authority/30UE,Development Control,1091,Shared Service Arrangement,HM Land Registry Fees,40174,Miscellaneous Expenses,5034,land reg,27/08/2014,97358,144.00,Revenue,H M Land Registry,17567
Chorley Borough Council,http://statistics.data.gov.uk/id/local-authority/30UE,Corporate Management,1008,Shared Service Arrangement,HM Land Registry Fees,40174,Miscellaneous Expenses,5034,land reg,27/08/2014,97358,85.00,Revenue,H M Land Registry,17567
Chorley Borough Council,http://statistics.data.gov.uk/id/local-authority/30UE,Democratic Represent and  Mgnt,1007,Streetscene & Leisure Contracts,Children's Activities,40188,Miscellaneous Expenses,5034,printing of 2000 general info Yarrow Valley leaflets and 1000 history leaflets as per quotation.  Delivery to Begal Street Depot ,15/08/2014,97163,495.00,Revenue,Haslam PrintersLtd,21777
Chorley Borough Council,http://statistics.data.gov.uk/id/local-authority/30UE,Flood Defence & Land Drainage,1046,Health Environment & Neighbourhoods,Miscellaneous Expenses,40200,Miscellaneous Expenses,5034,Neighbourhood Priority- South Avenue Area Improvements Works:  Preparation of a costed detailed drainage design ,01/08/2014,96874,650.00,Revenue,HIM Associates,55659
Chorley Borough Council,http://statistics.data.gov.uk/id/local-authority/30UE,Unapportionable Central OHeads,1009,HR & Org. Development,Professional Fees,40063,Services,5027,HR Support/Mediation ,27/08/2014,97219,550.00,Revenue,Hyndburn Borough Council,17084
Chorley Borough Council,http://statistics.data.gov.uk/id/local-authority/30UE,Service Management & Support,1009,Streetscene & Leisure Contracts,Vehicle Trackers,30046,Direct Transport Costs,5016,Lease of vehicle tracker system from 01/04/2014 through until 31/03/2015,20/08/2014,97246,795.80,Revenue,Investec Asset Finance Plc,53879
Chorley Borough Council,http://statistics.data.gov.uk/id/local-authority/30UE,Service Management & Support,1009,Streetscene & Leisure Contracts,External Contractor,40198,Miscellaneous Expenses,5034,Removal of scaffolding cover from containers in Bengal St depot as requested,20/08/2014,97023,416.00,Revenue,J M Services (North West) Ltd,17837
Chorley Borough Council,http://statistics.data.gov.uk/id/local-authority/30UE,Planning Policy,1092,Governance,Sale Of Property - Advertising,40162,Miscellaneous Expenses,5034,"Public Notice for sale of POS land owned by the Council at land to the rear of 18A The Farthings, Astley Village 307.56",20/08/2014,97081,307.56,Revenue,Johnston Publishing Ltd,20072
Chorley Borough Council,http://statistics.data.gov.uk/id/local-authority/30UE,Planning Policy,1092,Governance,Sale Of Property - Advertising,40162,Miscellaneous Expenses,5034,"Public Notice for sale of POS land owned by the Council at land to the rear of 18A The Farthings, Astley Village 307.56",20/08/2014,97082,307.56,Revenue,Johnston Publishing Ltd,20072
Chorley Borough Council,http://statistics.data.gov.uk/id/local-authority/30UE,Development Control,1091,Planning,Statutory Notices,40160,Miscellaneous Expenses,5034,Planning Public Notices to appear in the Chorley Guardian April 2014 - March 2015,20/08/2014,97220,251.64,Revenue,Johnston Publishing Ltd,20072
Chorley Borough Council,http://statistics.data.gov.uk/id/local-authority/30UE,Corporate Management,1008,Health Environment & Neighbourhoods,Miscellaneous Expenses,40200,Miscellaneous Expenses,5034,WSH0100811 Public Notice as agreed ,22/08/2014,97329,256.00,Revenue,Johnston Publishing Ltd,20072
Chorley Borough Council,http://statistics.data.gov.uk/id/local-authority/30UE,Development Control,1091,Planning,Statutory Notices,40160,Miscellaneous Expenses,5034,Planning Public Notices to appear in the Chorley Guardian April 2014 - March 2015,22/08/2014,97330,349.50,Revenue,Johnston Publishing Ltd,20072
Chorley Borough Council,http://statistics.data.gov.uk/id/local-authority/30UE,Central Support Services,1009,"Customer, ICT & Transactional",IT Software - Annual Licences,40101,Communication and Computing,5028,Enterprise subscription agreement - year 4 of 5 To cover 380 Council estate for Office ProPlus and VDA licenses 30 Project,22/08/2014,97164,"30,284.90",Revenue,Kelway UK Ltd,60681
Chorley Borough Council,http://statistics.data.gov.uk/id/local-authority/30UE,Corporate Management,1008,Health Environment & Neighbourhoods,Pest Control,20039,Cleaning and Domestic Supplies,5012,Complete seal kit,27/08/2014,97343,10.90,Revenue,Killgerm Chemicals Ltd,16879
Chorley Borough Council,http://statistics.data.gov.uk/id/local-authority/30UE,Corporate Management,1008,Health Environment & Neighbourhoods,Pest Control,20039,Cleaning and Domestic Supplies,5012,Ficam W BOX OF 10 X 15 G  sachets PER BOX,27/08/2014,97343,113.72,Revenue,Killgerm Chemicals Ltd,16879
Chorley Borough Council,http://statistics.data.gov.uk/id/local-authority/30UE,Corporate Management,1008,Health Environment & Neighbourhoods,Pest Control,20039,Cleaning and Domestic Supplies,5012,Cimetrol residual insectiide,27/08/2014,97343,106.50,Revenue,Killgerm Chemicals Ltd,16879
Chorley Borough Council,http://statistics.data.gov.uk/id/local-authority/30UE,Corporate Management,1008,Health Environment & Neighbourhoods,Pest Control,20039,Cleaning and Domestic Supplies,5012,Contrac all weather blox 0.005% bromadialone,27/08/2014,97343,299.40,Revenue,Killgerm Chemicals Ltd,16879
Chorley Borough Council,http://statistics.data.gov.uk/id/local-authority/30UE,Corporate Management,1008,Health Environment & Neighbourhoods,Pest Control,20039,Cleaning and Domestic Supplies,5012,No 4 Cardboard Bait Box Pack 100,27/08/2014,97343,130.00,Revenue,Killgerm Chemicals Ltd,16879
Chorley Borough Council,http://statistics.data.gov.uk/id/local-authority/30UE,Control Accounts,Control,Shared Service Arrangement,General Balances,100,Balance Sheet,Balance,Deductions July 14,15/08/2014,97171,930.82,Revenue,Labour Councillors Association,17577
Chorley Borough Council,http://statistics.data.gov.uk/id/local-authority/30UE,Control Accounts,Control,Shared Service Arrangement,General Balances,100,Balance Sheet,Balance,Sals Ded,22/08/2014,97274,"1,188.06",Revenue,Labour Councillors Association,17577
Chorley Borough Council,http://statistics.data.gov.uk/id/local-authority/30UE,Flood Defence & Land Drainage,1046,Chief Executives Office,Other Contributions,40145,Grants and Subscriptions,5031,CBC contribution to the Lancashire IDVA service 2014/15,15/08/2014,97040,"9,000.00",Revenue,Lancashire County Council,17758
Chorley Borough Council,http://statistics.data.gov.uk/id/local-authority/30UE,Collection Fund Revenue Accoun,,Shared Service Arrangement,NNDR County Share,2036,Precepts & Collection Fund,Precept,Business Rates Share,13/08/2014,97095,"241,439.00",Revenue,Lancashire County Council,18386
Chorley Borough Council,http://statistics.data.gov.uk/id/local-authority/30UE,Precepts and Collection Fund,Precepts,Shared Service Arrangement,LCC Precept,2009,Precepts & Collection Fund,Precept,CTAX Precept,13/08/2014,97095,"3,739,823.00",Revenue,Lancashire County Council,18386
Chorley Borough Council,http://statistics.data.gov.uk/id/local-authority/30UE,Economic Development,1096,Economic Development,Rent/Hire Of Premises,20017,Premises Rents,5007,Monthly Rental of Connexions Building 61-63 Market Street Chorley from 3rd August 2014,20/08/2014,97129,"1,250.00",Revenue,Lancashire County Council,17758
Chorley Borough Council,http://statistics.data.gov.uk/id/local-authority/30UE,Capital,Capital,Housing,Grants,3002,Capital Expenditure,Capital,INV.5100215716 Glovfer ADDRESS REDACTED,20/08/2014,97196,"3,287.00",Capital,Lancashire County Council,17758
Chorley Borough Council,http://statistics.data.gov.uk/id/local-authority/30UE,Unapportionable Central OHeads,1009,Shared Service Arrangement,Pensions Increase Act Payments,18005,Indirect Employee Expenses,5002,,26/08/2014,97293,"37,663.71",Revenue,Lancashire County Council,18386
Chorley Borough Council,http://statistics.data.gov.uk/id/local-authority/30UE,Unapportionable Central OHeads,1009,Shared Service Arrangement,Pensions Increase Act Payments,18005,Indirect Employee Expenses,5002,pension recharg,26/08/2014,97294,"18,929.00",Revenue,Lancashire County Council,18386
Chorley Borough Council,http://statistics.data.gov.uk/id/local-authority/30UE,Unapportionable Central OHeads,1009,Shared Service Arrangement,Pensions Increase Act Payments,18005,Indirect Employee Expenses,5002,pension June,26/08/2014,97295,"18,929.00",Revenue,Lancashire County Council,18386
Chorley Borough Council,http://statistics.data.gov.uk/id/local-authority/30UE,Precepts and Collection Fund,Precepts,Shared Service Arrangement,LCC Precept,2009,Precepts & Collection Fund,Precept,ctax,26/08/2014,97296,"3,739,823.00",Revenue,Lancashire County Council,18386
Chorley Borough Council,http://statistics.data.gov.uk/id/local-authority/30UE,Collection Fund Revenue Accoun,,Shared Service Arrangement,NNDR County Share,2036,Precepts & Collection Fund,Precept,nndr,26/08/2014,97296,"241,439.00",Revenue,Lancashire County Council,18386
Chorley Borough Council,http://statistics.data.gov.uk/id/local-authority/30UE,Economic Development,1096,Governance,Rent/Hire Of Premises,20017,Premises Rents,5007,Lease from LCC 61-63 Market Street,29/08/2014,97360,"1,000.00",Revenue,Lancashire County Council,17758
Chorley Borough Council,http://statistics.data.gov.uk/id/local-authority/30UE,Unapportionable Central OHeads,1009,Shared Service Arrangement,Pensions Deficit Recovery Contributions,12003,Direct Employee Expenses,5001,Pension Deficit as per YPS 14,26/08/2014,97315,"59,133.33",Revenue,Lancashire Pensions Services,16696
Chorley Borough Council,http://statistics.data.gov.uk/id/local-authority/30UE,Unapportionable Central OHeads,1009,Shared Service Arrangement,Pensions Deficit Recovery Contributions,12003,Direct Employee Expenses,5001,Pension Deficit as per YPS 14,26/08/2014,97316,"59,133.33",Revenue,Lancashire Pensions Services,16696
Chorley Borough Council,http://statistics.data.gov.uk/id/local-authority/30UE,Unapportionable Central OHeads,1009,Shared Service Arrangement,Pensions Deficit Recovery Contributions,12003,Direct Employee Expenses,5001,Pension Deficit as per YPS 14,26/08/2014,97319,"59,133.33",Revenue,Lancashire Pensions Services,16696
Chorley Borough Council,http://statistics.data.gov.uk/id/local-authority/30UE,Corporate Management,1008,Streetscene & Leisure Contracts,Clinical Waste Collection,50007,Private Contractors,5042,Disposal of Clinical waste from Chorley Households.April 2014 to March 2015 yellow bag collections approx 550 per month.,15/08/2014,96988,969.76,Revenue,Lancashire Teaching Hospitals NHS FT,19003
Chorley Borough Council,http://statistics.data.gov.uk/id/local-authority/30UE,Collection Fund Revenue Accoun,,Shared Service Arrangement,NNDR Fire Share,2037,Precepts & Collection Fund,Precept,Share of NNDR July,13/08/2014,97102,"26,827.00",Revenue,Lancs Combined Fire Authority,17768
Chorley Borough Council,http://statistics.data.gov.uk/id/local-authority/30UE,Precepts and Collection Fund,Precepts,Shared Service Arrangement,LCFA Precept,2011,Precepts & Collection Fund,Precept,Precept July,13/08/2014,97102,"214,953.00",Revenue,Lancs Combined Fire Authority,17768
Chorley Borough Council,http://statistics.data.gov.uk/id/local-authority/30UE,Precepts and Collection Fund,Precepts,Shared Service Arrangement,LCFA Precept,2011,Precepts & Collection Fund,Precept,fire precept,26/08/2014,97297,"214,953.00",Revenue,Lancs Combined Fire Authority,17768
Chorley Borough Council,http://statistics.data.gov.uk/id/local-authority/30UE,Collection Fund Revenue Accoun,,Shared Service Arrangement,NNDR Fire Share,2037,Precepts & Collection Fund,Precept,nndr precept,26/08/2014,97298,"26,827.00",Revenue,Lancs Combined Fire Authority,17768
Chorley Borough Council,http://statistics.data.gov.uk/id/local-authority/30UE,Development Control,1091,Planning,Legal Fees,40171,Miscellaneous Expenses,5034,Camelot Theme Park Charnock Richard - professional fees Simon Pickles instruction to Counsel and drafting refusal,27/08/2014,97348,700.00,Revenue,Landmark Chambers,56730
Chorley Borough Council,http://statistics.data.gov.uk/id/local-authority/30UE,Control Accounts,Control,Shared Service Arrangement,Manual Control Account,1,Balance Sheet,Balance,refund,22/08/2014,CRREF30,"12,631.20",Revenue,Landmark Chambers,56730
Chorley Borough Council,http://statistics.data.gov.uk/id/local-authority/30UE,Capital,Capital,Streetscene & Leisure Contracts,Main Contractor,3007,Capital Expenditure,Capital,Final Payment for works at Astley Hall footway,13/08/2014,96987,"2,273.07",Capital,Landscape Engineering Ltd,54727
Chorley Borough Council,http://statistics.data.gov.uk/id/local-authority/30UE,Flood Defence & Land Drainage,1046,Health Environment & Neighbourhoods,External Contractor,40198,Miscellaneous Expenses,5034,Purchase order to cover additional items after site visit with Antony (A) Side of pharmacy- Rosewood Capping Cover Board,22/08/2014,97283,891.67,Revenue,Lee Kelly UPVC,65500
Chorley Borough Council,http://statistics.data.gov.uk/id/local-authority/30UE,Flood Defence & Land Drainage,1046,Health Environment & Neighbourhoods,External Contractor,40198,Miscellaneous Expenses,5034,"Supply & fit new cladding at shop units Clayton Brook, as per quote & site visit. Install to commence Friday 13th June 2014",22/08/2014,97284,"3,666.67",Revenue,Lee Kelly UPVC,65500
Chorley Borough Council,http://statistics.data.gov.uk/id/local-authority/30UE,Parking Services,1066,Streetscene & Leisure Contracts,External Contractors,50008,Private Contractors,5042,Enforcement and cash collection for off street car parks. 1 April to 31 August 2014,13/08/2014,97030,"5,252.45",Revenue,Legion Group,21973
Chorley Borough Council,http://statistics.data.gov.uk/id/local-authority/30UE,Unapportionable Central OHeads,1009,"Customer, ICT & Transactional",Publications,40054,"Printing, Stationery & General",5026,Ryde on Rating,13/08/2014,96922,301.45,Revenue,Lexis Nexis UK,16688
Chorley Borough Council,http://statistics.data.gov.uk/id/local-authority/30UE,Unapportionable Central OHeads,1009,Governance,Asset Maintenance Fund,20012,Repairs Maintenance & Alts,5005,Pass through wr,20/08/2014,97243,"2,558.87",Revenue,Liberata UK,20716
Chorley Borough Council,http://statistics.data.gov.uk/id/local-authority/30UE,Unapportionable Central OHeads,1009,Governance,Asset Maintenance Fund,20012,Repairs Maintenance & Alts,5005,July 2014 - Work in Progress,20/08/2014,97244,"4,852.76",Revenue,Liberata UK,20716
Chorley Borough Council,http://statistics.data.gov.uk/id/local-authority/30UE,Central Support Services,1009,"Customer, ICT & Transactional",Computer Equipment-Purchase,40098,Communication and Computing,5028,"APC Symmetra PX All-In-One 48kW Scalable to 48kW, 400V",22/08/2014,96745,"15,644.17",Revenue,Lima Networks,65084
Chorley Borough Council,http://statistics.data.gov.uk/id/local-authority/30UE,Central Support Services,1009,"Customer, ICT & Transactional",Computer Equipment-Purchase,40098,Communication and Computing,5028,APC Symmetra PX48 Battery Frame with 9 Battery modules & Startup,22/08/2014,96745,"8,111.03",Revenue,Lima Networks,65084
Chorley Borough Council,http://statistics.data.gov.uk/id/local-authority/30UE,Central Support Services,1009,"Customer, ICT & Transactional",Computer Equipment-Purchase,40098,Communication and Computing,5028,"Power Dist, Mod. 3X1 Pole 3 Wire RCD 16A 3XIEC309 480cm, 540cm, 600cm",22/08/2014,96745,"1,885.56",Revenue,Lima Networks,65084
Chorley Borough Council,http://statistics.data.gov.uk/id/local-authority/30UE,Central Support Services,1009,"Customer, ICT & Transactional",Computer Equipment-Purchase,40098,Communication and Computing,5028,"Rack PDU,Basic,ZeroU,16A,230V,(20)C13 & (4)C19, IEC309",22/08/2014,96745,"1,238.30",Revenue,Lima Networks,65084
Chorley Borough Council,http://statistics.data.gov.uk/id/local-authority/30UE,Central Support Services,1009,"Customer, ICT & Transactional",Computer Equipment-Purchase,40098,Communication and Computing,5028,APC Gold Delivery,22/08/2014,96745,"1,383.50",Revenue,Lima Networks,65084
Chorley Borough Council,http://statistics.data.gov.uk/id/local-authority/30UE,Central Support Services,1009,"Customer, ICT & Transactional",Computer Equipment-Maintenance,40105,Communication and Computing,5028,2 Year Onsite Warranty Extension for Symmetra PX 48/64kW,22/08/2014,96745,"4,710.38",Revenue,Lima Networks,65084
Chorley Borough Council,http://statistics.data.gov.uk/id/local-authority/30UE,Flood Defence & Land Drainage,1046,Health Environment & Neighbourhoods,Children's Activities,40188,Miscellaneous Expenses,5034,Hire of rock climbing wall on Wed 6th August for layday,15/08/2014,97116,515.00,Revenue,Lister Logic LTD,22431
Chorley Borough Council,http://statistics.data.gov.uk/id/local-authority/30UE,Unapportionable Central OHeads,1009,Health Environment & Neighbourhoods,Exhibitions & Special Events,40158,Miscellaneous Expenses,5034,Provision of climbing wall for Picnic in the Park,20/08/2014,97143,515.00,Revenue,Lister Logic LTD,22431
Chorley Borough Council,http://statistics.data.gov.uk/id/local-authority/30UE,Unapportionable Central OHeads,1009,Chief Executives Office,Stationery,40050,"Printing, Stationery & General",5026,C5 Window Envelopes,13/08/2014,97025,27.88,Revenue,Lyreco UK Ltd,17623
Chorley Borough Council,http://statistics.data.gov.uk/id/local-authority/30UE,Unapportionable Central OHeads,1009,Chief Executives Office,Stationery,40050,"Printing, Stationery & General",5026,1147105 - Shredder Bags,13/08/2014,97025,77.51,Revenue,Lyreco UK Ltd,17623
Chorley Borough Council,http://statistics.data.gov.uk/id/local-authority/30UE,Unapportionable Central OHeads,1009,Chief Executives Office,Stationery,40050,"Printing, Stationery & General",5026,LYRECO NOTEBOOK A4 80 SHEETS 70 GSM RULED DOUBLE WIRE - PACK OF 5,13/08/2014,97025,8.85,Revenue,Lyreco UK Ltd,17623
Chorley Borough Council,http://statistics.data.gov.uk/id/local-authority/30UE,Unapportionable Central OHeads,1009,Chief Executives Office,Stationery,40050,"Printing, Stationery & General",5026,Lyreco Plain Yellow Sticky Notes 75 X 75Mm - Pack Of 12 Pads,13/08/2014,97025,2.16,Revenue,Lyreco UK Ltd,17623
Chorley Borough Council,http://statistics.data.gov.uk/id/local-authority/30UE,Unapportionable Central OHeads,1009,Chief Executives Office,Stationery,40050,"Printing, Stationery & General",5026,327293 White Magnets 10mm,13/08/2014,97025,3.46,Revenue,Lyreco UK Ltd,17623
Chorley Borough Council,http://statistics.data.gov.uk/id/local-authority/30UE,Unapportionable Central OHeads,1009,Chief Executives Office,Stationery,40050,"Printing, Stationery & General",5026,LYRECO BUDGET PIN/CLIP BADGES 55 X 90MM - BOX OF 50,13/08/2014,97025,5.10,Revenue,Lyreco UK Ltd,17623
Chorley Borough Council,http://statistics.data.gov.uk/id/local-authority/30UE,Unapportionable Central OHeads,1009,Chief Executives Office,Stationery,40050,"Printing, Stationery & General",5026,Rubbermaid Pedal Bin,13/08/2014,97025,98.38,Revenue,Lyreco UK Ltd,17623
Chorley Borough Council,http://statistics.data.gov.uk/id/local-authority/30UE,Unapportionable Central OHeads,1009,Chief Executives Office,Stationery,40050,"Printing, Stationery & General",5026,CEP Isis Green spirit desktop range - black,13/08/2014,97025,51.36,Revenue,Lyreco UK Ltd,17623
Chorley Borough Council,http://statistics.data.gov.uk/id/local-authority/30UE,Flood Defence & Land Drainage,1046,HR & Org. Development,Agency Staff,13000,Direct Employee Expenses,5001,Wordsworth Colin PAYE Public Protection Officer SA71531 17.17,22/08/2014,97266,712.14,Revenue,Matrix SCM Ltd,22128
Chorley Borough Council,http://statistics.data.gov.uk/id/local-authority/30UE,Economic Development,1096,Economic Development,Grants To Other Organisations,40127,Grants and Subscriptions,5031,Starting in Busniess Grant,20/08/2014,97182,250.00,Revenue,NAME REDACTED,66514
Chorley Borough Council,http://statistics.data.gov.uk/id/local-authority/30UE,Capital,Capital,Streetscene & Leisure Contracts,Main Contractor,3007,Capital Expenditure,Capital,"Jubilee Recreation Ground, Adlington -  Freeform Concrete Skate Park.  Design and Build with associated H & S ",13/08/2014,97079,"14,250.00",Capital,Maverick Industries Limited,65524
Chorley Borough Council,http://statistics.data.gov.uk/id/local-authority/30UE,Service Management & Support,1009,Streetscene & Leisure Contracts,Supplies-Grounds Maintenance,40025,"Equipment, Furniture & Materia",5023,Supply 40 tonne of 50:50 sand soil mix already supplied,22/08/2014,97321,929.97,Revenue,Mc & Ma Stewart (Haulage Ltd),16627
Chorley Borough Council,http://statistics.data.gov.uk/id/local-authority/30UE,Service Management & Support,1009,Streetscene & Leisure Contracts,Supplies-Grounds Maintenance,40025,"Equipment, Furniture & Materia",5023,20 ton crush & run 20mm - dust,22/08/2014,97322,370.30,Revenue,Mc & Ma Stewart (Haulage Ltd),16627
Chorley Borough Council,http://statistics.data.gov.uk/id/local-authority/30UE,Service Management & Support,1009,Streetscene & Leisure Contracts,Supplies-Grounds Maintenance,40025,"Equipment, Furniture & Materia",5023,Supply 20 tonne of grade 1 soil delivered to Bengal St depot already supplied as discussed with Rachel,22/08/2014,97323,389.48,Revenue,Mc & Ma Stewart (Haulage Ltd),16627
Chorley Borough Council,http://statistics.data.gov.uk/id/local-authority/30UE,Economic Development,1096,Economic Development,Grants To Other Organisations,40127,Grants and Subscriptions,5031,Satrting in Busniess Grant,15/08/2014,97078,250.00,Revenue,NAME REDACTED,66381
Chorley Borough Council,http://statistics.data.gov.uk/id/local-authority/30UE,Unapportionable Central OHeads,1009,HR & Org. Development,Training Course Fees,17010,Indirect Employee Expenses,5002,"Persons From Abroad 1 day course Cost of the 1 day course including a training manual each, desk aids and inclusive ",15/08/2014,97117,475.00,Revenue,Meritec,19498
Chorley Borough Council,http://statistics.data.gov.uk/id/local-authority/30UE,Flood Defence & Land Drainage,1046,Health Environment & Neighbourhoods,Children's Activities,40188,Miscellaneous Expenses,5034,Delvery of BMX camp over summer and schools competition,22/08/2014,97290,950.00,Revenue,Mid Lancs BMX Club,22010
Chorley Borough Council,http://statistics.data.gov.uk/id/local-authority/30UE,Democratic Represent and  Mgnt,1007,Governance,Computer Software-Maintenance,40107,Communication and Computing,5028,Modgov. maintenance and support 1 August 2014 to 31 July 2015,13/08/2014,96990,"6,870.00",Revenue,Modern Mindset LTD,51367
Chorley Borough Council,http://statistics.data.gov.uk/id/local-authority/30UE,Private Sector HSG Renewal,1073,Housing,Employee Related Insurance,18003,Indirect Employee Expenses,5002,Provision of Energy Switching Support Service (July),22/08/2014,97271,600.00,Revenue,Mrs Heather Shaw,65606
Chorley Borough Council,http://statistics.data.gov.uk/id/local-authority/30UE,Economic Development,1096,Economic Development,Grants To Other Organisations,40127,Grants and Subscriptions,5031,Shop Front Improvement Grant 1st and Final,20/08/2014,97268,"3,637.50",Revenue,Mrs Thi Phuong Dung Nguyen Trading as Miss Nails,66524
Chorley Borough Council,http://statistics.data.gov.uk/id/local-authority/30UE,Surplus or Deficit on Trading,1019,Policy & Performance,Research & Feasibilities,40079,Services,5027,Market Walk consultation brochure,08/08/2014,96877,640.00,Revenue,N B Colour Print Ltd,17917
Chorley Borough Council,http://statistics.data.gov.uk/id/local-authority/30UE,Control Accounts,Control,Shared Service Arrangement,General Balances,100,Balance Sheet,Balance,Salary deduction July 14,22/08/2014,97254,655.00,Revenue,Natwest Bank Ac 01019432207689,16968
Chorley Borough Council,http://statistics.data.gov.uk/id/local-authority/30UE,Service Management & Support,1009,Streetscene & Leisure Contracts,Refuse Collection,20037,Cleaning and Domestic Supplies,5012,Exchange of Street Cleaning skip from Chorley Council Bengal St depot at price quoted,22/08/2014,97069,258.63,Revenue,Neales Waste Management,17583
Chorley Borough Council,http://statistics.data.gov.uk/id/local-authority/30UE,Service Management & Support,1009,Streetscene & Leisure Contracts,Refuse Collection,20037,Cleaning and Domestic Supplies,5012,Exchange of green waste skip from Bengal St depot at price quoted,22/08/2014,97069,258.63,Revenue,Neales Waste Management,17583
Chorley Borough Council,http://statistics.data.gov.uk/id/local-authority/30UE,Service Management & Support,1009,Streetscene & Leisure Contracts,Refuse Collection,20037,Cleaning and Domestic Supplies,5012,Charge for tonnage of green waste removed from Bengal St depot at price quoted,22/08/2014,97069,210.00,Revenue,Neales Waste Management,17583
Chorley Borough Council,http://statistics.data.gov.uk/id/local-authority/30UE,Service Management & Support,1009,Streetscene & Leisure Contracts,Refuse Collection,20037,Cleaning and Domestic Supplies,5012,Mixed waste exchange,20/08/2014,97070,"1,000.00",Revenue,Neales Waste Management,17583
Chorley Borough Council,http://statistics.data.gov.uk/id/local-authority/30UE,Corporate Management,1008,Health Environment & Neighbourhoods,"Hackney Badges, Plates Etc.",40023,"Equipment, Furniture & Materia",5023,Private Hire Door Signs to include tamper evident hologram and cover,13/08/2014,97068,412.80,Revenue,NewAuto Ltd t/a MOGO UK,17187
Chorley Borough Council,http://statistics.data.gov.uk/id/local-authority/30UE,Corporate Management,1008,Health Environment & Neighbourhoods,"Hackney Badges, Plates Etc.",40023,"Equipment, Furniture & Materia",5023,Private Hire Internal Plate double sided with MOGLO light emitting panel on one side,13/08/2014,97068,173.40,Revenue,NewAuto Ltd t/a MOGO UK,17187
Chorley Borough Council,http://statistics.data.gov.uk/id/local-authority/30UE,Corporate Management,1008,Health Environment & Neighbourhoods,"Hackney Badges, Plates Etc.",40023,"Equipment, Furniture & Materia",5023,Private Hire Plates,13/08/2014,97068,206.40,Revenue,NewAuto Ltd t/a MOGO UK,17187
Chorley Borough Council,http://statistics.data.gov.uk/id/local-authority/30UE,Corporate Management,1008,Health Environment & Neighbourhoods,"Hackney Badges, Plates Etc.",40023,"Equipment, Furniture & Materia",5023,Postage and Packaging,13/08/2014,97068,14.90,Revenue,NewAuto Ltd t/a MOGO UK,17187
Chorley Borough Council,http://statistics.data.gov.uk/id/local-authority/30UE,Economic Development,1096,Economic Development,External Contractor,40198,Miscellaneous Expenses,5034,"To provide: Consultation, design, management, training and delivery of a frontage refurbishment scheme for Market Street",13/08/2014,96521,"32,735.06",Revenue,Newground CIC,22064
Chorley Borough Council,http://statistics.data.gov.uk/id/local-authority/30UE,Service Management & Support,1009,Streetscene & Leisure Contracts,Vehicle Maintenance,30045,Direct Transport Costs,5016,Supply polywire sweeper brushes for Schmidt swingo - already received,22/08/2014,97275,316.05,Revenue,Northern Municipal Spares Ltd,17752
Chorley Borough Council,http://statistics.data.gov.uk/id/local-authority/30UE,Service Management & Support,1009,Streetscene & Leisure Contracts,Vehicle Maintenance,30045,Direct Transport Costs,5016,Supply Polly brushes for Schmidt Swingo - already received,22/08/2014,97275,214.35,Revenue,Northern Municipal Spares Ltd,17752
Chorley Borough Council,http://statistics.data.gov.uk/id/local-authority/30UE,Service Management & Support,1009,Streetscene & Leisure Contracts,Vehicle Maintenance,30045,Direct Transport Costs,5016,Service Item  Supply wide sweep brush for Johnston VT6 - already received,22/08/2014,97275,56.07,Revenue,Northern Municipal Spares Ltd,17752
Chorley Borough Council,http://statistics.data.gov.uk/id/local-authority/30UE,Local Tax Collection,1010,"Customer, ICT & Transactional",Service Fees,40056,Services,5027,Backscanning of 11841 Building Control Images,22/08/2014,96966,287.03,Revenue,Northgate Information Solutions UK Limited,18285
Chorley Borough Council,http://statistics.data.gov.uk/id/local-authority/30UE,Democratic Represent and  Mgnt,1007,Streetscene & Leisure Contracts,Hire Of Transport,30028,Contrct Hire & Operating Lease,5018,Hire of transit crewcab tipper Reg NK13YPT from 01/04/2014 - 31/03/2015 Please use this from 01/04/2014,13/08/2014,96967,509.29,Revenue,Northgate Vehicle Hire (NW) Ltd,17360
Chorley Borough Council,http://statistics.data.gov.uk/id/local-authority/30UE,Service Management & Support,1009,Streetscene & Leisure Contracts,Hire Of Transport,30028,Contrct Hire & Operating Lease,5018,Hire of Ford transit tipper Reg NJ10OVN from 01/04/2014 - 31/03/2015. Please use this order from 01/04/2014,13/08/2014,96967,407.43,Revenue,Northgate Vehicle Hire (NW) Ltd,17360
Chorley Borough Council,http://statistics.data.gov.uk/id/local-authority/30UE,Service Management & Support,1009,Streetscene & Leisure Contracts,Hire Of Transport,30028,Contrct Hire & Operating Lease,5018,Hire of Ford Transit tipper Reg NJ10OTK from 01/04/2014 - 31/03/2015 Please use this order from 01/04/2014,13/08/2014,96967,407.43,Revenue,Northgate Vehicle Hire (NW) Ltd,17360
Chorley Borough Council,http://statistics.data.gov.uk/id/local-authority/30UE,Service Management & Support,1009,Streetscene & Leisure Contracts,Hire Of Transport,30028,Contrct Hire & Operating Lease,5018,Hire of Ford Transit tipper NJ10OXG from 01/04/2014 - 31/03/2015 Please use this order from 01/04/2014,13/08/2014,96967,407.43,Revenue,Northgate Vehicle Hire (NW) Ltd,17360
Chorley Borough Council,http://statistics.data.gov.uk/id/local-authority/30UE,Service Management & Support,1009,Streetscene & Leisure Contracts,Hire Of Transport,30028,Contrct Hire & Operating Lease,5018,Hire of Ford transit crewcab tipper Reg NL12ONR from 01/04/2014 - 31/03/2015 Please use this from 01/04/2015,13/08/2014,96967,522.57,Revenue,Northgate Vehicle Hire (NW) Ltd,17360
Chorley Borough Council,http://statistics.data.gov.uk/id/local-authority/30UE,Service Management & Support,1009,Streetscene & Leisure Contracts,Hire Of Transport,30028,Contrct Hire & Operating Lease,5018,Hiore of Ford Transit crewcab NL12OFG from 01/04/2014 - 31/03/2015 Please use this from 01/04/2014,13/08/2014,96967,522.57,Revenue,Northgate Vehicle Hire (NW) Ltd,17360
Chorley Borough Council,http://statistics.data.gov.uk/id/local-authority/30UE,Service Management & Support,1009,Streetscene & Leisure Contracts,Hire Of Transport,30028,Contrct Hire & Operating Lease,5018,Hire of Ford Transit tipper NJ60KFK from 01/04/2014 - 31/03/2015 Please use this from 01/04/2014,13/08/2014,96967,413.81,Revenue,Northgate Vehicle Hire (NW) Ltd,17360
Chorley Borough Council,http://statistics.data.gov.uk/id/local-authority/30UE,Corporate Management,1008,Streetscene & Leisure Contracts,Hire Of Transport,30028,Contrct Hire & Operating Lease,5018,Hire of Peugeot Partner NV60BVF from 01/04/2014 - 31/03/2015 Please use this from 01/04/2014,13/08/2014,96967,241.40,Revenue,Northgate Vehicle Hire (NW) Ltd,17360
Chorley Borough Council,http://statistics.data.gov.uk/id/local-authority/30UE,Corporate Management,1008,Streetscene & Leisure Contracts,Hire Of Transport,30028,Contrct Hire & Operating Lease,5018,Hire of Peueot Partner Reg NX62UCS from 01/04/2014 - 31/03/2015 Please use this from 01/04/2014,13/08/2014,96967,241.40,Revenue,Northgate Vehicle Hire (NW) Ltd,17360
Chorley Borough Council,http://statistics.data.gov.uk/id/local-authority/30UE,Service Management & Support,1009,Streetscene & Leisure Contracts,Hire Of Transport,30028,Contrct Hire & Operating Lease,5018,Hire of 17 seater minibus for Northwest in Bloom judging on Monday 7th July 2014,13/08/2014,96967,75.64,Revenue,Northgate Vehicle Hire (NW) Ltd,17360
Chorley Borough Council,http://statistics.data.gov.uk/id/local-authority/30UE,Flood Defence & Land Drainage,1046,Streetscene & Leisure Contracts,Hire Of Transport,30028,Contrct Hire & Operating Lease,5018,Hire of Transit van for leisure service from 24/07/2014 through to 02/09/2014  as discussed,13/08/2014,96967,85.18,Revenue,Northgate Vehicle Hire (NW) Ltd,17360
Chorley Borough Council,http://statistics.data.gov.uk/id/local-authority/30UE,Service Management & Support,1009,Streetscene & Leisure Contracts,Petrol,30005,Direct Transport Costs,5016,SJ12VWR Fuel - Buy It Later,13/08/2014,96967,18.70,Revenue,Northgate Vehicle Hire (NW) Ltd,17360
Chorley Borough Council,http://statistics.data.gov.uk/id/local-authority/30UE,Flood Defence & Land Drainage,1046,Governance,Electricity,20013,Energy Costs,5006,Un-Metered CCTV Cameras,20/08/2014,97123,256.33,Revenue,Npower Commercial Gas,16814
Chorley Borough Council,http://statistics.data.gov.uk/id/local-authority/30UE,Democratic Represent and  Mgnt,1007,Governance,Electricity,20013,Energy Costs,5006,Astley Hall Farm,20/08/2014,97245,41.43,Revenue,Npower Commercial Gas,16814
Chorley Borough Council,http://statistics.data.gov.uk/id/local-authority/30UE,Corporate Management,1008,Governance,Electricity,20013,Energy Costs,5006,Cemetery Chapel,20/08/2014,97245,1.67,Revenue,Npower Commercial Gas,16814
Chorley Borough Council,http://statistics.data.gov.uk/id/local-authority/30UE,Democratic Represent and  Mgnt,1007,Governance,Electricity,20013,Energy Costs,5006,King George V Playing fields,20/08/2014,97245,6.34,Revenue,Npower Commercial Gas,16814
Chorley Borough Council,http://statistics.data.gov.uk/id/local-authority/30UE,Unapportionable Central OHeads,1009,Governance,Electricity,20013,Energy Costs,5006,Civic Offices,20/08/2014,97245,"3,154.43",Revenue,Npower Commercial Gas,16814
Chorley Borough Council,http://statistics.data.gov.uk/id/local-authority/30UE,Unapportionable Central OHeads,1009,Governance,Electricity,20013,Energy Costs,5006,Bengal Street,20/08/2014,97245,523.39,Revenue,Npower Commercial Gas,16814
Chorley Borough Council,http://statistics.data.gov.uk/id/local-authority/30UE,Unapportionable Central OHeads,1009,Governance,Electricity,20013,Energy Costs,5006,Town Hall,20/08/2014,97245,"1,784.66",Revenue,Npower Commercial Gas,16814
Chorley Borough Council,http://statistics.data.gov.uk/id/local-authority/30UE,Homelessness,1075,Governance,Electricity,20013,Energy Costs,5006,Cotswold House Single Storey Wing,20/08/2014,97245,128.20,Revenue,Npower Commercial Gas,16814
Chorley Borough Council,http://statistics.data.gov.uk/id/local-authority/30UE,Business Support,1095,Governance,Electricity,20013,Energy Costs,5006,98 Market Street,20/08/2014,97245,41.76,Revenue,Npower Commercial Gas,16814
Chorley Borough Council,http://statistics.data.gov.uk/id/local-authority/30UE,Business Support,1095,Governance,Electricity,20013,Energy Costs,5006,100 Market Street,20/08/2014,97245,85.27,Revenue,Npower Commercial Gas,16814
Chorley Borough Council,http://statistics.data.gov.uk/id/local-authority/30UE,Business Support,1095,Governance,Electricity,20013,Energy Costs,5006,102a Market street,20/08/2014,97245,77.36,Revenue,Npower Commercial Gas,16814
Chorley Borough Council,http://statistics.data.gov.uk/id/local-authority/30UE,Business Support,1095,Governance,Electricity,20013,Energy Costs,5006,102b Market Street,20/08/2014,97245,99.13,Revenue,Npower Commercial Gas,16814
Chorley Borough Council,http://statistics.data.gov.uk/id/local-authority/30UE,Economic Development,1096,Economic Development,Grants To Other Organisations,40127,Grants and Subscriptions,5031,Shop Front (1st and final),22/08/2014,97320,"1,938.63",Revenue,Nr Nickolas Andronicou,66663
Chorley Borough Council,http://statistics.data.gov.uk/id/local-authority/30UE,Capital,Capital,Housing,Main Contractor,3007,Capital Expenditure,Capital,Refurbishment of Cotswold,15/08/2014,97067,"67,031.85",Capital,P J Services (Bolton) Ltd,62962
Chorley Borough Council,http://statistics.data.gov.uk/id/local-authority/30UE,Parking Services,1066,Streetscene & Leisure Contracts,External Contractors,50008,Private Contractors,5042,"Estimated Quarterly charges for PCNs issued in 2014 / 2015. 800 PCNs per annum @60p each. /quarter.",22/08/2014,97292,421.45,Revenue,PATROL,21859
Chorley Borough Council,http://statistics.data.gov.uk/id/local-authority/30UE,Economic Development,1096,Economic Development,Grants To Other Organisations,40127,Grants and Subscriptions,5031,Starting in Business Grant Payment,15/08/2014,97066,250.00,Revenue,NAME REDACTED,66382
Chorley Borough Council,http://statistics.data.gov.uk/id/local-authority/30UE,Planning Policy,1092,Governance,Legal Fees,40171,Miscellaneous Expenses,5034,Payment of legal cost for deed of release of open space convenant,08/08/2014,96986,500.00,Revenue,Persimmon Homes ( Lancashire) Limited,22149
Chorley Borough Council,http://statistics.data.gov.uk/id/local-authority/30UE,Planning Policy,1092,Planning,Consultants` Fees,40077,Services,5027,Central Lancs CIL - Judicial Review Advice provided by Matthew Whiteley and James Ashford and expenses incurred,22/08/2014,97264,"8,177.43",Revenue,Peter Brett Associates LLp,48733
Chorley Borough Council,http://statistics.data.gov.uk/id/local-authority/30UE,Flood Defence & Land Drainage,1046,Health Environment & Neighbourhoods,External Contractor,40198,Miscellaneous Expenses,5034,Pest control duties for 2014/15,01/08/2014,96861,323.83,Revenue,Peter L Johnson,16727
Chorley Borough Council,http://statistics.data.gov.uk/id/local-authority/30UE,Flood Defence & Land Drainage,1046,Health Environment & Neighbourhoods,External Contractor,40198,Miscellaneous Expenses,5034,Pest control duties for 2014/15,15/08/2014,97109,323.83,Revenue,Peter L Johnson,16727
Chorley Borough Council,http://statistics.data.gov.uk/id/local-authority/30UE,Flood Defence & Land Drainage,1046,Health Environment & Neighbourhoods,External Contractor,40198,Miscellaneous Expenses,5034,Pest control duties for 2014/15,20/08/2014,97213,323.83,Revenue,Peter L Johnson,16727
Chorley Borough Council,http://statistics.data.gov.uk/id/local-authority/30UE,Flood Defence & Land Drainage,1046,Health Environment & Neighbourhoods,External Contractor,40198,Miscellaneous Expenses,5034,Pest control duties for 2014/15,29/08/2014,97369,323.83,Revenue,Peter L Johnson,16727
Chorley Borough Council,http://statistics.data.gov.uk/id/local-authority/30UE,Precepts and Collection Fund,Precepts,Shared Service Arrangement,LPA Precept,2010,Precepts & Collection Fund,Precept,Precept,13/08/2014,97103,"526,535.00",Revenue,Police & Crime Commissioner,17438
Chorley Borough Council,http://statistics.data.gov.uk/id/local-authority/30UE,Precepts and Collection Fund,Precepts,Shared Service Arrangement,LPA Precept,2010,Precepts & Collection Fund,Precept,PRECEPT,26/08/2014,97299,"526,535.00",Revenue,Police & Crime Commissioner,17438
Chorley Borough Council,http://statistics.data.gov.uk/id/local-authority/30UE,Surplus or Deficit on Trading,1019,Policy & Performance,Research & Feasibilities,40079,Services,5027,Market Walk Consultation Panels,15/08/2014,97018,282.03,Revenue,Poppy Signs Ltd,21898
Chorley Borough Council,http://statistics.data.gov.uk/id/local-authority/30UE,Economic Development,1096,Economic Development,Grants To Other Organisations,40127,Grants and Subscriptions,5031,Chorley Business Investment for Growth Grant - Contribution towards building worls,20/08/2014,97141,"1,600.00",Revenue,Poppy Signs Ltd,21898
Chorley Borough Council,http://statistics.data.gov.uk/id/local-authority/30UE,Unapportionable Central OHeads,1009,HR & Org. Development,Training Course Fees,17010,Indirect Employee Expenses,5002,Two Sessions - Sharing Skills Training,27/08/2014,97269,990.00,Revenue,Potential Unearthed,22243
Chorley Borough Council,http://statistics.data.gov.uk/id/local-authority/30UE,Unapportionable Central OHeads,1009,Chief Executives Office,Photocopier Consumables,40049,"Printing, Stationery & General",5026,"Evolution Everyday A4 80gsm, Box 2500",22/08/2014,97192,454.00,Revenue,Premier Paper Group,54451
Chorley Borough Council,http://statistics.data.gov.uk/id/local-authority/30UE,Unapportionable Central OHeads,1009,Governance,Refreshments,40036,Catering,5024,water cooler supply and sanitation till march 2015.,20/08/2014,97165,693.50,Revenue,Pressure Coolers Ltd T/A Maestro International Ltd,19767
Chorley Borough Council,http://statistics.data.gov.uk/id/local-authority/30UE,Elections,1012,Governance,Postages,40082,Communication and Computing,5028,Balance of postage for confirmation IER Mailing 8234 @.0.247,13/08/2014,97060,"2,033.80",Revenue,Print Image Facilities LLP,57870
Chorley Borough Council,http://statistics.data.gov.uk/id/local-authority/30UE,Elections,1012,Governance,Postages,40082,Communication and Computing,5028,HEF - Initial postage,20/08/2014,97209,"1,927.93",Revenue,Print Image Facilities LLP,57870
Chorley Borough Council,http://statistics.data.gov.uk/id/local-authority/30UE,Elections,1012,Governance,Postages,40082,Communication and Computing,5028,ITR _ Initial postage,20/08/2014,97210,"1,889.29",Revenue,Print Image Facilities LLP,57870
Chorley Borough Council,http://statistics.data.gov.uk/id/local-authority/30UE,Homelessness,1075,Housing,External Contractor,40198,Miscellaneous Expenses,5034,"Concierge service at Cotswold Supported Housing, Cotswold Road, Chorley. Lancashire, PR7 3HW. ",15/08/2014,97017,"4,428.60",Revenue,Profile Security Ltd,58000
Chorley Borough Council,http://statistics.data.gov.uk/id/local-authority/30UE,Service Management & Support,1009,Streetscene & Leisure Contracts,Refuse Collection,20037,Cleaning and Domestic Supplies,5012,Charge for the disposal of waste for Chorley Council. (Please use this order No from 01/04/2014),20/08/2014,96950,310.98,Revenue,Quercia Ltd,19049
Chorley Borough Council,http://statistics.data.gov.uk/id/local-authority/30UE,Service Management & Support,1009,Streetscene & Leisure Contracts,Refuse Collection,20037,Cleaning and Domestic Supplies,5012,Charge for the disposal of waste for Chorley Council. (Please use this order No from 01/04/2014),20/08/2014,96951,383.67,Revenue,Quercia Ltd,19049
Chorley Borough Council,http://statistics.data.gov.uk/id/local-authority/30UE,Flood Defence & Land Drainage,1046,Health Environment & Neighbourhoods,Hire Of Transport,30028,Contrct Hire & Operating Lease,5018,"Hire of 36 seater coach for return travel from Clayton Green Sports Centre (8.15am) to Sportcity, Manchester. ",29/08/2014,97407,370.00,Revenue,R S Tyrer Ltd,16255
Chorley Borough Council,http://statistics.data.gov.uk/id/local-authority/30UE,Economic Development,1096,Economic Development,Grants To Other Organisations,40127,Grants and Subscriptions,5031,Starting in Business Grant,27/08/2014,97277,250.00,Revenue,NAME REDACTED,66521
Chorley Borough Council,http://statistics.data.gov.uk/id/local-authority/30UE,Service Management & Support,1009,Streetscene & Leisure Contracts,Hire Of Transport,30028,Contrct Hire & Operating Lease,5018,Hire of quad weedsprayer as per invoice number RSIN0108365,22/08/2014,97009,720.00,Revenue,Rigby Taylor Ltd,16299
Chorley Borough Council,http://statistics.data.gov.uk/id/local-authority/30UE,Service Management & Support,1009,Streetscene & Leisure Contracts,Supplies-Grounds Maintenance,40025,"Equipment, Furniture & Materia",5023,5 ltr Trustee Amenity Glyphosate,15/08/2014,97140,"1,060.00",Revenue,Rigby Taylor Ltd,16299
Chorley Borough Council,http://statistics.data.gov.uk/id/local-authority/30UE,Economic Development,1096,Economic Development,Grants To Other Organisations,40127,Grants and Subscriptions,5031,Starting in Busniess Grant,27/08/2014,97276,250.00,Revenue,NAME REDACTED,66523
Chorley Borough Council,http://statistics.data.gov.uk/id/local-authority/30UE,Precepts and Collection Fund,Precept,"Customer, ICT & Transactional",Bailiff Costs,2018,Precepts & Collection Fund,Precept,Compliance Paid,13/08/2014,97057,75.00,Revenue,Rundles,17803
Chorley Borough Council,http://statistics.data.gov.uk/id/local-authority/30UE,Precepts and Collection Fund,Precept,"Customer, ICT & Transactional",Bailiff Costs,2018,Precepts & Collection Fund,Precept,Enforcement Paid,13/08/2014,97057,204.30,Revenue,Rundles,17803
Chorley Borough Council,http://statistics.data.gov.uk/id/local-authority/30UE,Precepts and Collection Fund,Precept,"Customer, ICT & Transactional",Bailiff Costs,2018,Precepts & Collection Fund,Precept,VAT Collected,13/08/2014,97057,0.00,Revenue,Rundles,17803
Chorley Borough Council,http://statistics.data.gov.uk/id/local-authority/30UE,Precepts and Collection Fund,Precept,"Customer, ICT & Transactional",Bailiff Costs,2018,Precepts & Collection Fund,Precept,Agreed Fees,13/08/2014,97058,459.00,Revenue,Rundles,17803
Chorley Borough Council,http://statistics.data.gov.uk/id/local-authority/30UE,Precepts and Collection Fund,Precept,"Customer, ICT & Transactional",Bailiff Costs,2018,Precepts & Collection Fund,Precept,VAT On Enforcement,13/08/2014,97058,0.00,Revenue,Rundles,17803
Chorley Borough Council,http://statistics.data.gov.uk/id/local-authority/30UE,Service Management & Support,1009,Streetscene & Leisure Contracts,Vehicle Maintenance,30045,Direct Transport Costs,5016,Supply and fit new body panels and fit new loading anchor points on DK56JWO as requested through driver report sheet,29/08/2014,97382,420.00,Revenue,Sam Bird Motorbodies,20116
Chorley Borough Council,http://statistics.data.gov.uk/id/local-authority/30UE,Service Management & Support,1009,Streetscene & Leisure Contracts,Vehicle Maintenance,30045,Direct Transport Costs,5016,Supply and fit new body panels and loading anchor points as requested through driver report and FTA inspection sheet,29/08/2014,97383,330.00,Revenue,Sam Bird Motorbodies,20116
Chorley Borough Council,http://statistics.data.gov.uk/id/local-authority/30UE,Homelessness,1075,Housing,Training Course Fees,17010,Indirect Employee Expenses,5002,1)Advanced Homelessness and Allocations Law / Housing law for Supported Housing Workers: Mark Robinson  2 days,22/08/2014,96842,"6,200.00",Revenue,Shelter Training,21902
Chorley Borough Council,http://statistics.data.gov.uk/id/local-authority/30UE,Central Support Services,1009,"Customer, ICT & Transactional",Consultants` Fees,40077,Services,5027,Work on cemeteries specification - week ending 10/08/14 13h53m at 24 per hour,29/08/2014,97352,333.12,Revenue,Simon Daniel Booth,57624
Chorley Borough Council,http://statistics.data.gov.uk/id/local-authority/30UE,Central Support Services,1009,"Customer, ICT & Transactional",Consultants` Fees,40077,Services,5027,Work on cemeteries specification week ending 17/08/14 15h54m at 24 per hour,29/08/2014,97352,381.60,Revenue,Simon Daniel Booth,57624
Chorley Borough Council,http://statistics.data.gov.uk/id/local-authority/30UE,Service Management & Support,1009,Streetscene & Leisure Contracts,Protective Clothing,40040,"Clothing, Uniforms and Laundry",5025,Caderousse Safety Boot.  Size 9,13/08/2014,97051,190.00,Revenue,Smart Image Workwear,21064
Chorley Borough Council,http://statistics.data.gov.uk/id/local-authority/30UE,Service Management & Support,1009,Streetscene & Leisure Contracts,Protective Clothing,40040,"Clothing, Uniforms and Laundry",5025,Caderousse Safety Boot.  Size 8,13/08/2014,97051,114.00,Revenue,Smart Image Workwear,21064
Chorley Borough Council,http://statistics.data.gov.uk/id/local-authority/30UE,Service Management & Support,1009,Streetscene & Leisure Contracts,Protective Clothing,40040,"Clothing, Uniforms and Laundry",5025,Polo Shirt.  Red c/w Chorley Council Logo.  Size Medium.,15/08/2014,97168,118.00,Revenue,Smart Image Workwear,21064
Chorley Borough Council,http://statistics.data.gov.uk/id/local-authority/30UE,Service Management & Support,1009,Streetscene & Leisure Contracts,Protective Clothing,40040,"Clothing, Uniforms and Laundry",5025,"Polo Shirt Red, c/w Chorley Council Logo.  Size Large",15/08/2014,97168,88.50,Revenue,Smart Image Workwear,21064
Chorley Borough Council,http://statistics.data.gov.uk/id/local-authority/30UE,Service Management & Support,1009,Streetscene & Leisure Contracts,Protective Clothing,40040,"Clothing, Uniforms and Laundry",5025,Polo Shirt Red c/w Chorley Council logo.  Size XXL,15/08/2014,97168,59.00,Revenue,Smart Image Workwear,21064
Chorley Borough Council,http://statistics.data.gov.uk/id/local-authority/30UE,Service Management & Support,1009,Streetscene & Leisure Contracts,Protective Clothing,40040,"Clothing, Uniforms and Laundry",5025,Uneek Crew neck sweat shirt.  Red c/w Chorley Council logo.  Size XL,15/08/2014,97168,43.75,Revenue,Smart Image Workwear,21064
Chorley Borough Council,http://statistics.data.gov.uk/id/local-authority/30UE,Service Management & Support,1009,Streetscene & Leisure Contracts,External Contractor,40198,Miscellaneous Expenses,5034,Removal of compound at Wranglettes recreation ground as requested,20/08/2014,97020,530.00,Revenue,Speakman Contractors Ltd,54838
Chorley Borough Council,http://statistics.data.gov.uk/id/local-authority/30UE,Unapportionable Central OHeads,1009,Streetscene & Leisure Contracts,Fixtures & Fittings - Repair/Mtnce,20028,Fixtures and Fittings,5010,Installation of power and fans to filing cabinet.,13/08/2014,97047,532.61,Revenue,Speakman Contractors Ltd,54838
Chorley Borough Council,http://statistics.data.gov.uk/id/local-authority/30UE,Flood Defence & Land Drainage,1046,Health Environment & Neighbourhoods,Miscellaneous Expenses,40200,Miscellaneous Expenses,5034,"Time Credit Programme 2014/15 - new purchase order to replace  Three payments remaining at 18,175.00 each",01/08/2014,96871,"18,175.00",Revenue,Spice Innovations Ltd,61318
Chorley Borough Council,http://statistics.data.gov.uk/id/local-authority/30UE,Community Development,1097,Health Environment & Neighbourhoods,External Contractor,40198,Miscellaneous Expenses,5034,Provision of facilitator and support for year 1 delivery of time credits programme in Chorley. Start Aug 2013,01/08/2014,96879,"13,775.00",Revenue,Spice Innovations Ltd,61318
Chorley Borough Council,http://statistics.data.gov.uk/id/local-authority/30UE,Unapportionable Central OHeads,1009,Transformation Management,Asset Maintenance Fund,20012,Repairs Maintenance & Alts,5005,Romving anti Vandal paint and fit bolts to door,20/08/2014,97199,327.00,Revenue,Stringfellow Bldg Cntrctrs Ltd,17893
Chorley Borough Council,http://statistics.data.gov.uk/id/local-authority/30UE,Unapportionable Central OHeads,1009,Transformation Management,Asset Maintenance Fund,20012,Repairs Maintenance & Alts,5005,"To supply and fit steel door with ply and steel panel, as per quotaion on 31st July",20/08/2014,97235,750.00,Revenue,Stringfellow Bldg Cntrctrs Ltd,17893
Chorley Borough Council,http://statistics.data.gov.uk/id/local-authority/30UE,Capital,Capital,Housing,Grants,3002,Capital Expenditure,Capital,INV.9648 NAME AND ADDRESS REDACTED,22/08/2014,97260,"9,675.60",Capital,Stringfellow Bldg Cntrctrs Ltd,17893
Chorley Borough Council,http://statistics.data.gov.uk/id/local-authority/30UE,Capital,Capital,Housing,Grants,3002,Capital Expenditure,Capital,INV 9647 NAME AND ADDRESS REDACTED,22/08/2014,97261,"7,452.00",Capital,Stringfellow Bldg Cntrctrs Ltd,17893
Chorley Borough Council,http://statistics.data.gov.uk/id/local-authority/30UE,Unapportionable Central OHeads,1009,Policy & Performance,Exhibitions & Special Events,40158,Miscellaneous Expenses,5034,Town centre summer event,13/08/2014,97041,350.00,Revenue,Sunshine Events,22127
Chorley Borough Council,http://statistics.data.gov.uk/id/local-authority/30UE,Unapportionable Central OHeads,1009,Policy & Performance,Exhibitions & Special Events,40158,Miscellaneous Expenses,5034,Town centre summer event,13/08/2014,97042,350.00,Revenue,Sunshine Events,22127
Chorley Borough Council,http://statistics.data.gov.uk/id/local-authority/30UE,Unapportionable Central OHeads,1009,Policy & Performance,Exhibitions & Special Events,40158,Miscellaneous Expenses,5034,Street theatre for summer event,29/08/2014,97356,695.00,Revenue,The Fairly Famous Family Limited,20457
Chorley Borough Council,http://statistics.data.gov.uk/id/local-authority/30UE,Corporate Management,1008,Policy & Performance,Other Fees,40212,Miscellaneous Expenses,5034,Meals on Wheels menus and posters,13/08/2014,97004,266.20,Revenue,The Print Quarter,17987
Chorley Borough Council,http://statistics.data.gov.uk/id/local-authority/30UE,Community Development,1097,Health Environment & Neighbourhoods,Miscellaneous Expenses,40200,Miscellaneous Expenses,5034,"4 quarterly publications of Pick me Up Chorley East health newsletter Nov 2013, Feb 2014, May 2014, July,2014",15/08/2014,97135,280.00,Revenue,The Print Quarter,17987
Chorley Borough Council,http://statistics.data.gov.uk/id/local-authority/30UE,Flood Defence & Land Drainage,1046,Health Environment & Neighbourhoods,Miscellaneous Expenses,40200,Miscellaneous Expenses,5034,"studio service extra charge - 20 prints scanned, header 85.00 20 Outdoor UV 4mm Correx Fluted boards doublesided printed",27/08/2014,97345,382.00,Revenue,The Print Quarter,17987
Chorley Borough Council,http://statistics.data.gov.uk/id/local-authority/30UE,Unapportionable Central OHeads,1009,Chief Executives Office,Postages,40082,Communication and Computing,5028,Mail collection for all departments,15/08/2014,97169,616.69,Revenue,TNT Post North Ltd,21187
Chorley Borough Council,http://statistics.data.gov.uk/id/local-authority/30UE,Unapportionable Central OHeads,1009,Chief Executives Office,Postages,40082,Communication and Computing,5028,Mail collection for all departments,15/08/2014,97173,682.65,Revenue,TNT Post North Ltd,21187
Chorley Borough Council,http://statistics.data.gov.uk/id/local-authority/30UE,Unapportionable Central OHeads,1009,Chief Executives Office,Postages,40082,Communication and Computing,5028,Mail collection for all departments,15/08/2014,97174,"1,112.48",Revenue,TNT Post North Ltd,21187
Chorley Borough Council,http://statistics.data.gov.uk/id/local-authority/30UE,Service Management & Support,1009,Streetscene & Leisure Contracts,Grounds Maintenance Contractor,20043,Grounds Maintenance Costs,5013,Tree work carried out Jubilee Rec Tree work carried out Waterloo St,27/08/2014,97350,720.00,Revenue,Treescape North West Ltd,17688
Chorley Borough Council,http://statistics.data.gov.uk/id/local-authority/30UE,Unapportionable Central OHeads,1009,Governance,Television Licence,40170,Miscellaneous Expenses,5034,"Renewal of TV Licence - Group Licence 900054144 - 2014/2015 at Town Hall, Market Street & Civic Offices Union Street",13/08/2014,97130,145.50,Revenue,TV Licensing,18105
Chorley Borough Council,http://statistics.data.gov.uk/id/local-authority/30UE,Unapportionable Central OHeads,1009,Governance,Television Licence,40170,Miscellaneous Expenses,5034,"Renewal of TV Licence - Group Licence 900054144 - 2014/2015 at Town Hall, Market Street & Civic Offices Union Street",13/08/2014,97130,145.50,Revenue,TV Licensing,18105
Chorley Borough Council,http://statistics.data.gov.uk/id/local-authority/30UE,Community Development,1097,Governance,Grants To Other Organisations,40127,Grants and Subscriptions,5031,Councillor Community Grant Fund 2014/2015,13/08/2014,97108,250.00,Revenue,Two Trees Community Garden,66384
Chorley Borough Council,http://statistics.data.gov.uk/id/local-authority/30UE,Unapportionable Central OHeads,1009,HR & Org. Development,Operational Wages,10200,Direct Employee Expenses,5001,Levels 1-5,20/08/2014,97198,"1,385.60",Revenue,UK Healthcare (BDHSC),17241
Chorley Borough Council,http://statistics.data.gov.uk/id/local-authority/30UE,Control Accounts,Control,HR & Org. Development,General Balances,100,Balance Sheet,Balance,Top Ups,20/08/2014,97198,513.10,Revenue,UK Healthcare (BDHSC),17241
Chorley Borough Council,http://statistics.data.gov.uk/id/local-authority/30UE,Unapportionable Central OHeads,1009,"Customer, ICT & Transactional",Postages,40082,Communication and Computing,5028,Imail Eco Business mono letters - hybrid,20/08/2014,97201,485.52,Revenue,UKMAIL Ltd (Mail),57758
Chorley Borough Council,http://statistics.data.gov.uk/id/local-authority/30UE,Unapportionable Central OHeads,1009,"Customer, ICT & Transactional",Postages,40082,Communication and Computing,5028,Imail Eco Business mono letters - hybrid,20/08/2014,97202,554.89,Revenue,UKMAIL Ltd (Mail),57758
Chorley Borough Council,http://statistics.data.gov.uk/id/local-authority/30UE,Unapportionable Central OHeads,1009,"Customer, ICT & Transactional",Postages,40082,Communication and Computing,5028,Imail Eco Business mono letters - hybrid,27/08/2014,97332,582.15,Revenue,UKMAIL Ltd (Mail),57758
Chorley Borough Council,http://statistics.data.gov.uk/id/local-authority/30UE,Control Accounts,Control,Shared Service Arrangement,General Balances,100,Balance Sheet,Balance,Sal Ded August 14,15/08/2014,97191,"1,418.67",Revenue,Unify Credit Union Ltd,55509
Chorley Borough Council,http://statistics.data.gov.uk/id/local-authority/30UE,Unapportionable Central OHeads,1009,Governance,Water - Metered Supplies,20022,Water Services,5009,Council Offices,01/08/2014,96869,713.93,Revenue,United Utilities Water Plc,17926
Chorley Borough Council,http://statistics.data.gov.uk/id/local-authority/30UE,Democratic Represent and  Mgnt,1007,Governance,Member Development Programme,17007,Indirect Employee Expenses,5002,One day scrutiny event for councillors on Thursday 3rd July 2014 (2.00pm to 7.00pm) at Chorley Town Hall.,22/08/2014,97326,950.00,Revenue,University of Birmingham,65082
Chorley Borough Council,http://statistics.data.gov.uk/id/local-authority/30UE,Development Control,1091,Planning,Professional Fees,40063,Services,5027,Planning Officer support processing and evaluating 26 applications between 2-31 July 2014 @ 125 ,20/08/2014,97200,"3,437.05",Revenue,Urban Vision Partnership Ltd,21181
Chorley Borough Council,http://statistics.data.gov.uk/id/local-authority/30UE,Corporate Management,1008,Streetscene & Leisure Contracts,Unitary Payment(S),50009,Private Contractors,5042,Provision of household waste and recycling collection service and ancillary services for 2014/15,22/08/2014,97314,"270,663.75",Revenue,Veolia ES (UK) Ltd,20748
Chorley Borough Council,http://statistics.data.gov.uk/id/local-authority/30UE,Flood Defence & Land Drainage,1046,Health Environment & Neighbourhoods,Telephones - Rentals,40083,Communication and Computing,5028,CCTV from Clayton Brook Village Centre to Chorley Police Station Jun14 - Jun15,20/08/2014,97203,"1,950.00",Revenue,Virgin Media Payments Ltd,17632
Chorley Borough Council,http://statistics.data.gov.uk/id/local-authority/30UE,Flood Defence & Land Drainage,1046,Health Environment & Neighbourhoods,Telephones - Rentals,40083,Communication and Computing,5028,CCTV from Clayton Brook Village Centre to Chorley Police Station Jun14 - Jun15,20/08/2014,97204,"1,950.00",Revenue,Virgin Media Payments Ltd,17632
Chorley Borough Council,http://statistics.data.gov.uk/id/local-authority/30UE,Flood Defence & Land Drainage,1046,Health Environment & Neighbourhoods,Children's Activities,40188,Miscellaneous Expenses,5034,Hire of 5 x Portable toilets on Wednesday 6th August at Coronation Recration Ground Drop off at 9am - collection at 3.45pm,20/08/2014,97218,325.00,Revenue,William G Search Limited,20793
Chorley Borough Council,http://statistics.data.gov.uk/id/local-authority/30UE,Capital,Capital,Streetscene & Leisure Contracts,Main Contractor,3007,Capital Expenditure,Capital,"Resurfacing and improvements to Fleet St short stay car park, Chorley",15/08/2014,97132,"88,365.45",Capital,William Pye Ltd,60564
Chorley Borough Council,http://statistics.data.gov.uk/id/local-authority/30UE,Capital,Capital,Streetscene & Leisure Contracts,Main Contractor,3007,Capital Expenditure,Capital,"Resurfacing and improvements to Flat Iron car park, Chorley",15/08/2014,97133,"24,403.60",Capital,William Pye Ltd,60564
Chorley Borough Council,http://statistics.data.gov.uk/id/local-authority/30UE,Capital,Capital,Streetscene & Leisure Contracts,Main Contractor,3007,Capital Expenditure,Capital,"Resurfacing and improvements to Flat Iron car park, Chorley",22/08/2014,97291,"33,794.97",Capital,William Pye Ltd,60564
Chorley Borough Council,http://statistics.data.gov.uk/id/local-authority/30UE,Democratic Represent and  Mgnt,1007,Streetscene & Leisure Contracts,Grounds Maintenance Contractor,20043,Grounds Maintenance Costs,5013,To retrive artwork and make amendments to the two Yarrow Valley Leaflets based on previous versions,13/08/2014,97014,405.00,Revenue,Woods Creative Marketing Ltd,21774
Chorley Borough Council,http://statistics.data.gov.uk/id/local-authority/30UE,Service Management & Support,1009,Streetscene & Leisure Contracts,Vehicle Maintenance,30045,Direct Transport Costs,5016,Trace fault to EGRvalve sticking replace valve take to main dealership for computer updates fill with fluid on NJ10 OTW,20/08/2014,97225,512.00,Revenue,Wrekamendid Services Ltd,21188
Chorley Borough Council,http://statistics.data.gov.uk/id/local-authority/30UE,Service Management & Support,1009,Streetscene & Leisure Contracts,Vehicle Maintenance,30045,Direct Transport Costs,5016,Supply and fit new clutch in DK55EEF as required,29/08/2014,97362,650.00,Revenue,Wrekamendid Services Ltd,21188
